Department family,Entity,Date,Expense type,Expense area,Supplier,Transaction number,Amount
Home Office,Home Office,01/07/2010,Grant,CPG - Crime & Policing Group,INDEPENDENT POLICE COMPLAINTS COMI,412336,"3,000,000.00"
Home Office,Home Office,02/07/2010,Grant,CPG - Crime & Policing Group,COMMUNITIES & LOCAL GOVERNMENT (G),325574-5,"5,095,577.58"
Home Office,Home Office,02/07/2010,Grant,CPG - Crime & Policing Group,COMMUNITIES & LOCAL GOVERNMENT (G),325574-27,"1,282,696.92"
Home Office,Home Office,02/07/2010,Grant,CPG - Crime & Policing Group,COMMUNITIES & LOCAL GOVERNMENT (G),325574-16,"58,666.67"
Home Office,Home Office,02/07/2010,Grant,CPG - Crime & Policing Group,CHAMBERLAIN OF LONDON (G),288072,"1,938,392.00"
Home Office,Home Office,02/07/2010,Grant,CPG - Crime & Policing Group,CUMBRIA POLICE AUTHORITY 1 (G),288072,"2,922,288.00"
Home Office,Home Office,02/07/2010,Grant,CPG - Crime & Policing Group,WARWICKSHIRE POLICE AUTHORITY 1 (G,288072,"2,927,456.00"
Home Office,Home Office,02/07/2010,Grant,CPG - Crime & Policing Group,GLOUCESTERSHIRE POLICE AUTHORITY (,288072,"3,146,923.00"
Home Office,Home Office,02/07/2010,Grant,CPG - Crime & Policing Group,WILTSHIRE CONSTABULARY (G),288072,"3,504,353.00"
Home Office,Home Office,02/07/2010,Grant,CPG - Crime & Policing Group,DORSET POLICE AUTHORITY 1 (G),288072,"3,623,936.00"
Home Office,Home Office,02/07/2010,Grant,CPG - Crime & Policing Group,LINCOLNSHIRE POLICE AUTHORITY 1 (G,288072,"3,669,244.00"
Home Office,Home Office,02/07/2010,Grant,CPG - Crime & Policing Group,BEDFORDSHIRE POLICE AUTHORITY 1 (G,288072,"3,715,469.00"
Home Office,Home Office,02/07/2010,Grant,CPG - Crime & Policing Group,SUFFOLK POLICE AUTHORITY (G),288072,"3,791,747.00"
Home Office,Home Office,02/07/2010,Grant,CPG - Crime & Policing Group,NORTHAMPTONSHIRE POLICE 1 (G),288072,"3,918,228.00"
Home Office,Home Office,02/07/2010,Grant,CPG - Crime & Policing Group,DURHAM POLICE AUTHORITY 1 (G),288072,"3,979,534.00"
Home Office,Home Office,02/07/2010,Grant,CPG - Crime & Policing Group,NORTH YORKSHIRE POLICE AUTHORITY (,288072,"4,094,298.00"
Home Office,Home Office,02/07/2010,Grant,CPG - Crime & Policing Group,CLEVELAND POLICE AUTHORITY 1 (G),288072,"4,302,280.00"
Home Office,Home Office,02/07/2010,Grant,CPG - Crime & Policing Group,CAMBRIDGESHIRE POLICE AUTHORITY 1,288072,"4,405,973.00"
Home Office,Home Office,02/07/2010,Grant,CPG - Crime & Policing Group,NORFOLK POLICE AUTHORITY 1 (G),288072,"4,633,213.00"
Home Office,Home Office,02/07/2010,Grant,CPG - Crime & Policing Group,DERBYSHIRE POLICE AUTHORITY 1 (G),288072,"5,801,997.00"
Home Office,Home Office,02/07/2010,Grant,CPG - Crime & Policing Group,CHESHIRE POLICE AUTHORITY 2 (G),288072,"5,824,450.00"
Home Office,Home Office,02/07/2010,Grant,CPG - Crime & Policing Group,LEICESTERSHIRE POLICE AUTHORITY (G,288072,"5,874,816.00"
Home Office,Home Office,02/07/2010,Grant,CPG - Crime & Policing Group,SURREY POLICE AUTHORITY 1 (G),288072,"5,961,722.00"
Home Office,Home Office,02/07/2010,Grant,CPG - Crime & Policing Group,HUMBERSIDE POLICE AUTHORITY 1 (G),288072,"6,059,392.00"
Home Office,Home Office,02/07/2010,Grant,CPG - Crime & Policing Group,STAFFORDSHIRE POLICE AUTHORITY (G),288072,"6,098,226.00"
Home Office,Home Office,02/07/2010,Grant,CPG - Crime & Policing Group,NEW WEST MERCIA POLICE AUTHORITY (,288072,"6,225,056.00"
Home Office,Home Office,02/07/2010,Grant,CPG - Crime & Policing Group,HERTFORDSHIRE POLICE AUTHORITY 1 (,288072,"6,772,698.00"
Home Office,Home Office,02/07/2010,Grant,CPG - Crime & Policing Group,NOTTINGHAMSHIRE POLICE AUTHORITY 2,288072,"6,889,987.00"
Home Office,Home Office,02/07/2010,Grant,CPG - Crime & Policing Group,SUSSEX POLICE AUTHORITY 1 (G),288072,"8,965,956.00"
Home Office,Home Office,02/07/2010,Grant,CPG - Crime & Policing Group,SOUTH YORKSHIRE POLICE AUTHORITY 1,288072,"9,185,279.00"
Home Office,Home Office,02/07/2010,Grant,CPG - Crime & Policing Group,AVON & SOMERSET POLICE AUTHORITY 1,288072,"9,676,286.00"
Home Office,Home Office,02/07/2010,Grant,CPG - Crime & Policing Group,LANCASHIRE POLICE AUTHORITY 1 (G),288072,"9,734,716.00"
Home Office,Home Office,02/07/2010,Grant,CPG - Crime & Policing Group,DEVON & CORNWALL POLICE AUTHORITY,288072,"9,750,342.00"
Home Office,Home Office,02/07/2010,Grant,CPG - Crime & Policing Group,NORTHUMBRIA POLICE (G),288072,"9,784,854.00"
Home Office,Home Office,02/07/2010,Grant,CPG - Crime & Policing Group,ESSEX POLICE AUTHORITY (G),288072,"9,789,816.00"
Home Office,Home Office,02/07/2010,Grant,CPG - Crime & Policing Group,KENT POLICE AUTHORITY 1 (G),288072,"10,285,019.00"
Home Office,Home Office,02/07/2010,Grant,CPG - Crime & Policing Group,HAMPSHIRE POLICE AUTHORITY 1 (G),288072,"10,892,409.00"
Home Office,Home Office,02/07/2010,Grant,CPG - Crime & Policing Group,MERSEYSIDE POLICE AUTHORITY 1 (G),288072,"11,847,034.00"
Home Office,Home Office,02/07/2010,Grant,CPG - Crime & Policing Group,THAMES VALLEY POLICE AUTHORITY 1 (,288072,"13,080,226.00"
Home Office,Home Office,02/07/2010,Grant,CPG - Crime & Policing Group,WEST YORKSHIRE POLICE (G),288072,"16,166,659.00"
Home Office,Home Office,02/07/2010,Grant,CPG - Crime & Policing Group,GREATER MANCHESTER POLICE AUTHORIT,288072,"21,102,918.00"
Home Office,Home Office,02/07/2010,Grant,CPG - Crime & Policing Group,WEST MIDLANDS POLICE AUTHORITY 1 (,288072,"23,113,683.00"
Home Office,Home Office,02/07/2010,Grant,CPG - Crime & Policing Group,GREATER LONDON AUTHORITY (G),288072,"97,456,462.00"
Home Office,Home Office,02/07/2010,Grant,CPG - Crime & Policing Group,DYFED POWYS POLICE AUTHORITY 1 (G),288072,"2,934,971.00"
Home Office,Home Office,02/07/2010,Grant,CPG - Crime & Policing Group,NORTH WALES POLICE AUTHORITY (G),288072,"4,044,936.00"
Home Office,Home Office,02/07/2010,Grant,CPG - Crime & Policing Group,GWENT POLICE AUTHORITY 1 (G),288072,"4,051,297.00"
Home Office,Home Office,02/07/2010,Grant,CPG - Crime & Policing Group,SOUTH WALES POLICE AUTHORITY 1 (G),288072,"8,789,439.00"
Home Office,Home Office,02/07/2010,Grant,CPG - Crime & Policing Group,SOCA (G),401432,"35,000,000.00"
Home Office,Home Office,02/07/2010,Grant,CPG - Crime & Policing Group,CLEVELAND POLICE AUTHORITY 1 (G),419472,"1,595,977.00"
Home Office,Home Office,02/07/2010,IT & Telecoms Components.Computer Equip (FA),CPG - Crime & Policing Group,LOGICA CMG (UK) LIMITED,1713658,"812,612.38"
Home Office,Home Office,02/07/2010,Professional & Admin Services,CPG - Crime & Policing Group,COI COMMUNICATIONS,726528,"48,558.87"
Home Office,Home Office,05/07/2010,Grant,CPG - Crime & Policing Group,LONDON BOROUGH OF BRENT (G),425862,"25,000.00"
Home Office,Home Office,06/07/2010,"Building, Construction Service.Building ConstructionServ-PROG",CPG - Crime & Policing Group,"KELLOGG, BROWN AND ROOT LTD",1756638,"37,183.42"
Home Office,Home Office,07/07/2010,Grant,CPG - Crime & Policing Group,GWENT POLICE AUTHORITY 1 (G),431532,"2,394,632.00"
Home Office,Home Office,07/07/2010,"IT, Broadcasting & Telecomms.Computer Equip & Access - PROG",CPG - Crime & Policing Group,HER MAJESTY'S COURTS SERVICE,1757547,"44,000.00"
Home Office,Home Office,07/07/2010,"Science, Technical & Research.Social Research",CPG - Crime & Policing Group,TNS-BMRB,1749055,"447,552.02"
Home Office,Home Office,07/07/2010,"Transport, Storage & Mail Serv.Rail Passenger Transport- PROG",CPG - Crime & Policing Group,WEST YORKSHIRE POLICE AUTHORITY,1757668,"29,023.07"
Home Office,Home Office,09/07/2010,Grant,CPG - Crime & Policing Group,ISA (G),433790,"808,431.00"
Home Office,Home Office,09/07/2010,Professional & Admin Services.Business admin services - PROG,CPG - Crime & Policing Group,CATCH22,1758840,"144,424.24"
Home Office,Home Office,09/07/2010,Published Products,CPG - Crime & Policing Group,COI COMMUNICATIONS,726717,"90,635.98"
Home Office,Home Office,10/07/2010,Grant,CPG - Crime & Policing Group,HEREFORD CITY COUNCIL (G),426802,"33,830.71"
Home Office,Home Office,10/07/2010,Grant,CPG - Crime & Policing Group,LONDON BOROUGH OF MERTON 2 (G),426802,"43,532.08"
Home Office,Home Office,10/07/2010,Grant,CPG - Crime & Policing Group,KNOWSLEY MBC (C/O KNOWSLEY DAT) (G,426802,"56,279.97"
Home Office,Home Office,10/07/2010,Grant,CPG - Crime & Policing Group,LINCOLNSHIRE PCT,426802,"135,269.01"
Home Office,Home Office,10/07/2010,Grant,CPG - Crime & Policing Group,STAFFORDSHIRE COUNTY COUNCIL 1 (G),426802,"163,557.10"
Home Office,Home Office,10/07/2010,Grant,CPG - Crime & Policing Group,LONDON BOROUGH OF GREENWICH 1 (G),426802,"203,276.06"
Home Office,Home Office,10/07/2010,Grant,CPG - Crime & Policing Group,POSITIVE STEPS OLDHAM (G),426802,"225,962.85"
Home Office,Home Office,10/07/2010,Grant,CPG - Crime & Policing Group,KENT COUNTY COUNCIL 1 (G),426802,"283,075.08"
Home Office,Home Office,10/07/2010,Grant,CPG - Crime & Policing Group,OXFORD CITY PCT,426802,"287,022.88"
Home Office,Home Office,10/07/2010,Grant,CPG - Crime & Policing Group,NEWCASTLE-UPON-TYNE MDC (G),426802,"304,895.89"
Home Office,Home Office,10/07/2010,Grant,CPG - Crime & Policing Group,LEICESTER CITY COUNCIL 1 (G),426802,"354,792.53"
Home Office,Home Office,10/07/2010,Grant,CPG - Crime & Policing Group,WESTMINSTER CITY COUNCIL (G),426802,"437,126.04"
Home Office,Home Office,10/07/2010,Grant,CPG - Crime & Policing Group,NOTTINGHAM CITY COUNCIL 2 (G),426802,"455,427.20"
Home Office,Home Office,10/07/2010,Grant,CPG - Crime & Policing Group,BRADFORD COUNCIL(G),426802,"478,730.06"
Home Office,Home Office,10/07/2010,Grant,CPG - Crime & Policing Group,LIVERPOOL CITY COUNCIL 1 (G),426802,"506,592.94"
Home Office,Home Office,10/07/2010,Grant,CPG - Crime & Policing Group,DESIGN COUNCIL (G),434068-2,"41,666.00"
Home Office,Home Office,10/07/2010,Grant,CPG - Crime & Policing Group,DESIGN COUNCIL (G),434068-1,"41,666.00"
Home Office,Home Office,10/07/2010,Grant,CPG - Crime & Policing Group,DESIGN COUNCIL (G),434068-3,"41,666.00"
Home Office,Home Office,10/07/2010,Grant,CPG - Crime & Policing Group,DESIGN COUNCIL (G),434068,"41,666.00"
Home Office,Home Office,12/07/2010,Grant,CPG - Crime & Policing Group,METROPOLITAN POLICE AUTHORITY  (G),431530,"88,008.96"
Home Office,Home Office,14/07/2010,Management & Admin Serv.Temp IT Syst / Db Admin - PROG,CPG - Crime & Policing Group,LA INTERNATIONAL,1762115,"27,142.50"
Home Office,Home Office,14/07/2010,Management & Admin Serv.Temporary Manager Staff - PROG,CPG - Crime & Policing Group,LOTHIAN AND BORDERS POLICE,1761871,"25,835.33"
Home Office,Home Office,14/07/2010,"Professional & Admin Services.Corporate, Business IT Service",CPG - Crime & Policing Group,STERIA UK,1732902,"42,311.75"
Home Office,Home Office,14/07/2010,"Professional & Admin Services.Corporate, Business IT Service",CPG - Crime & Policing Group,STERIA UK,1756027,"42,311.75"
Home Office,Home Office,15/07/2010,Professional & Admin Services.Business admin services - PROG,CPG - Crime & Policing Group,CATCH22,1763005,"48,129.66"
Home Office,Home Office,16/07/2010,"Transport, Storage & Mail Serv.Rail Passenger Transport- PROG",CPG - Crime & Policing Group,THAMES VALLEY POLICE AUTHORITY,1764695,"29,471.52"
Home Office,Home Office,16/07/2010,"Transport, Storage & Mail Serv.Rail Passenger Transport- PROG",CPG - Crime & Policing Group,HAMPSHIRE CONSTABULARY,1763958,"43,609.64"
Home Office,Home Office,19/07/2010,Professional & Admin Services.Seconded in Staff costs - PROG,CPG - Crime & Policing Group,THAMES VALLEY POLICE AUTHORITY,1765721,"25,668.07"
Home Office,Home Office,19/07/2010,Professional & Admin Services,CPG - Crime & Policing Group,COI COMMUNICATIONS,727032,"38,022.71"
Home Office,Home Office,20/07/2010,Grant,CPG - Crime & Policing Group,HUMBERSIDE POLICE AUTHORITY (G),444596,"35,000.00"
Home Office,Home Office,20/07/2010,Grant,CPG - Crime & Policing Group,METROPOLITAN POLICE SERVICE (G),444598,"137,292.00"
Home Office,Home Office,20/07/2010,Grant,CPG - Crime & Policing Group,NSPCC 1 (G),443668,"26,512.00"
Home Office,Home Office,21/07/2010,Grant,CPG - Crime & Policing Group,KENT POLICE AUTHORITY 1 (G),444602,"26,297.28"
Home Office,Home Office,21/07/2010,Grant,CPG - Crime & Policing Group,LANCASHIRE POLICE AUTHORITY 1 (G),444602,"60,000.00"
Home Office,Home Office,21/07/2010,Grant,CPG - Crime & Policing Group,WEST MIDLANDS POLICE AUTHORITY 1 (,444602,"85,000.00"
Home Office,Home Office,21/07/2010,Grant,CPG - Crime & Policing Group,NATIONAL UNION OF STUDENTS (G),444610,"40,000.00"
Home Office,Home Office,21/07/2010,Grant,CPG - Crime & Policing Group,NEIGHBOURHOOD AND HOMEWATCH NETWOR,444610,"45,000.00"
Home Office,Home Office,21/07/2010,Management & Admin Serv.Management Support Serv - ADMN,CPG - Crime & Policing Group,MINISTRY OF DEFENCE,1748112,"26,984.81"
Home Office,Home Office,21/07/2010,Professional & Admin Services,CPG - Crime & Policing Group,COI COMMUNICATIONS,727231,"28,581.88"
Home Office,Home Office,23/07/2010,Education & Training Services.Training Dev External - ADMN,CPG - Crime & Policing Group,RESULTS INTERNATIONAL PLC,1752704,"48,611.85"
Home Office,Home Office,23/07/2010,Grant,CPG - Crime & Policing Group,CATCH 22 (G),444606,"212,000.00"
Home Office,Home Office,26/07/2010,IT & Telecommunications.IT & Telecommunications,CPG - Crime & Policing Group,LOGICA CMG UK LTD,1752635,"49,811.78"
Home Office,Home Office,27/07/2010,Grant,CPG - Crime & Policing Group,THE SURVIVORS TRUST (G),450068,"860,000.00"
Home Office,Home Office,27/07/2010,Laboratory & Scientific Equip.Dimension measuring equip,CPG - Crime & Policing Group,CONCATENO UK LIMITED,1742319,"43,319.43"
Home Office,Home Office,27/07/2010,Laboratory & Scientific Equip.Dimension measuring equip,CPG - Crime & Policing Group,CONCATENO UK LIMITED,1761909,"46,886.73"
Home Office,Home Office,27/07/2010,Management & Admin Serv.Temporary Manager Staff - PROG,CPG - Crime & Policing Group,GLOUCESTERSHIRE POLICE AUTHORITY,1761110,"27,988.33"
Home Office,Home Office,27/07/2010,Storage & Mail Services,CPG - Crime & Policing Group,COI COMMUNICATIONS,727230,"34,938.63"
Home Office,Home Office,27/07/2010,"Science, Technical & Research",CPG - Crime & Policing Group,NATIONAL TREATMENT AGENCY FOR SUBSTANCE MISUSE,4660677,"50,000.00"
Home Office,Home Office,28/07/2010,Grant,CPG - Crime & Policing Group,EAVES HOUSING FOR WOMEN LTD (G),450794,"172,280.00"
Home Office,Home Office,28/07/2010,Professional & Admin Services.Consultancy - Advice - PROG,CPG - Crime & Policing Group,ERNST AND YOUNG_001,1733571,"27,025.00"
Home Office,Home Office,28/07/2010,"Science, Technical & Research.Social Research",CPG - Crime & Policing Group,DE MONTFORT UNIVERSITY HIGHER EDUCATION CORPORATION,1772364,"43,098.38"
Home Office,Home Office,29/07/2010,Grant,CPG - Crime & Policing Group,CUMBRIA POLICE AUTHORITY 1 (G),447772,"62,984.40"
Home Office,Home Office,29/07/2010,Grant,CPG - Crime & Policing Group,WILTSHIRE CONSTABULARY (G),447772,"64,690.60"
Home Office,Home Office,29/07/2010,Grant,CPG - Crime & Policing Group,WARWICKSHIRE POLICE AUTHORITY 1 (G,447772,"70,937.60"
Home Office,Home Office,29/07/2010,Grant,CPG - Crime & Policing Group,LINCOLNSHIRE POLICE AUTHORITY 1 (G,447772,"77,577.40"
Home Office,Home Office,29/07/2010,Grant,CPG - Crime & Policing Group,GLOUCESTERSHIRE POLICE AUTHORITY (,447772,"80,913.40"
Home Office,Home Office,29/07/2010,Grant,CPG - Crime & Policing Group,SUFFOLK POLICE AUTHORITY (G),447772,"82,829.80"
Home Office,Home Office,29/07/2010,Grant,CPG - Crime & Policing Group,NORTH YORKSHIRE POLICE AUTHORITY (,447772,"89,307.40"
Home Office,Home Office,29/07/2010,Grant,CPG - Crime & Policing Group,DORSET POLICE AUTHORITY 1 (G),447772,"93,676.00"
Home Office,Home Office,29/07/2010,Grant,CPG - Crime & Policing Group,NORFOLK POLICE AUTHORITY 1 (G),447772,"93,888.00"
Home Office,Home Office,29/07/2010,Grant,CPG - Crime & Policing Group,SURREY POLICE AUTHORITY 1 (G),447772,"101,562.20"
Home Office,Home Office,29/07/2010,Grant,CPG - Crime & Policing Group,DURHAM POLICE AUTHORITY 1 (G),447772,"102,355.60"
Home Office,Home Office,29/07/2010,Grant,CPG - Crime & Policing Group,BEDFORDSHIRE POLICE AUTHORITY 1 (G,447772,"104,373.80"
Home Office,Home Office,29/07/2010,Grant,CPG - Crime & Policing Group,NORTHAMPTONSHIRE POLICE 1 (G),447772,"105,963.20"
Home Office,Home Office,29/07/2010,Grant,CPG - Crime & Policing Group,HERTFORDSHIRE POLICE AUTHORITY 1 (,447772,"111,870.80"
Home Office,Home Office,29/07/2010,Grant,CPG - Crime & Policing Group,CAMBRIDGESHIRE POLICE AUTHORITY 1,447772,"115,313.60"
Home Office,Home Office,29/07/2010,Grant,CPG - Crime & Policing Group,CLEVELAND POLICE AUTHORITY 1 (G),447772,"128,110.60"
Home Office,Home Office,29/07/2010,Grant,CPG - Crime & Policing Group,CHESHIRE POLICE AUTHORITY 2 (G),447772,"131,534.00"
Home Office,Home Office,29/07/2010,Grant,CPG - Crime & Policing Group,DERBYSHIRE POLICE AUTHORITY 1 (G),447772,"153,796.20"
Home Office,Home Office,29/07/2010,Grant,CPG - Crime & Policing Group,LEICESTERSHIRE POLICE AUTHORITY (G,447772,"164,104.00"
Home Office,Home Office,29/07/2010,Grant,CPG - Crime & Policing Group,DEVON & CORNWALL POLICE AUTHORITY,447772,"167,774.80"
Home Office,Home Office,29/07/2010,Grant,CPG - Crime & Policing Group,NEW WEST MERCIA POLICE AUTHORITY (,447772,"175,511.60"
Home Office,Home Office,29/07/2010,Grant,CPG - Crime & Policing Group,HUMBERSIDE POLICE AUTHORITY 1 (G),447772,"189,284.40"
Home Office,Home Office,29/07/2010,Grant,CPG - Crime & Policing Group,STAFFORDSHIRE POLICE AUTHORITY (G),447772,"202,808.40"
Home Office,Home Office,29/07/2010,Grant,CPG - Crime & Policing Group,ESSEX POLICE AUTHORITY (G),447772,"206,872.20"
Home Office,Home Office,29/07/2010,Grant,CPG - Crime & Policing Group,KENT POLICE AUTHORITY 1 (G),447772,"210,241.20"
Home Office,Home Office,29/07/2010,Grant,CPG - Crime & Policing Group,LANCASHIRE POLICE AUTHORITY 1 (G),447772,"229,306.80"
Home Office,Home Office,29/07/2010,Grant,CPG - Crime & Policing Group,SUSSEX POLICE AUTHORITY 1 (G),447772,"234,289.00"
Home Office,Home Office,29/07/2010,Grant,CPG - Crime & Policing Group,SOUTH YORKSHIRE POLICE AUTHORITY 1,447772,"244,182.20"
Home Office,Home Office,29/07/2010,Grant,CPG - Crime & Policing Group,HAMPSHIRE POLICE AUTHORITY 1 (G),447772,"246,493.80"
Home Office,Home Office,29/07/2010,Grant,CPG - Crime & Policing Group,NOTTINGHAMSHIRE POLICE AUTHORITY 2,447772,"262,692.00"
Home Office,Home Office,29/07/2010,Grant,CPG - Crime & Policing Group,NORTHUMBRIA POLICE (G),447772,"270,116.00"
Home Office,Home Office,29/07/2010,Grant,CPG - Crime & Policing Group,MERSEYSIDE POLICE AUTHORITY 1 (G),447772,"278,490.80"
Home Office,Home Office,29/07/2010,Grant,CPG - Crime & Policing Group,THAMES VALLEY POLICE AUTHORITY 1 (,447772,"342,973.00"
Home Office,Home Office,29/07/2010,Grant,CPG - Crime & Policing Group,AVON & SOMERSET POLICE AUTHORITY 1,447772,"349,970.40"
Home Office,Home Office,29/07/2010,Grant,CPG - Crime & Policing Group,WEST YORKSHIRE POLICE (G),447772,"552,242.00"
Home Office,Home Office,29/07/2010,Grant,CPG - Crime & Policing Group,GREATER MANCHESTER POLICE AUTHORIT,447772,"706,547.40"
Home Office,Home Office,29/07/2010,Grant,CPG - Crime & Policing Group,WEST MIDLANDS POLICE AUTHORITY 1 (,447772,"738,116.40"
Home Office,Home Office,29/07/2010,Grant,CPG - Crime & Policing Group,GREATER LONDON AUTHORITY (G),447772,"1,982,339.40"
Home Office,Home Office,29/07/2010,Grant,CPG - Crime & Policing Group,DYFED POWYS POLICE AUTHORITY 1 (G),447772,"54,294.20"
Home Office,Home Office,29/07/2010,Grant,CPG - Crime & Policing Group,NORTH WALES POLICE AUTHORITY (G),447772,"85,528.40"
Home Office,Home Office,29/07/2010,Grant,CPG - Crime & Policing Group,GWENT POLICE AUTHORITY 1 (G),447772,"95,550.20"
Home Office,Home Office,29/07/2010,Grant,CPG - Crime & Policing Group,SOUTH WALES POLICE AUTHORITY 1 (G),447772,"221,754.20"
Home Office,Home Office,29/07/2010,Grant,CPG - Crime & Policing Group,NPIA (G),439796,"30,000,000.00"
Home Office,Home Office,29/07/2010,"Transport, Storage & Mail Serv.Rail Passenger Transport- PROG",CPG - Crime & Policing Group,DURHAM POLICE AUTHORITY,1773328,"32,925.88"
Home Office,Home Office,30/07/2010,Grant,CPG - Crime & Policing Group,CATCH 22 (G),453384,"2,515,515.00"
Home Office,Home Office,30/07/2010,Grant,CPG - Crime & Policing Group,CRIMESTOPPERS TRUST (G),452894,"225,000.00"
Home Office,Home Office,30/07/2010,"IT, Broadcasting & Telecomms.IT Run Costs other -Prog",CPG - Crime & Policing Group,ALTIUS CONSULTING LTD,1755911,"31,654.50"
Home Office,Home Office,30/07/2010,"IT, Broadcasting & Telecomms.IT Run Costs other -Prog",CPG - Crime & Policing Group,ALTIUS CONSULTING LTD,1755835,"33,666.01"
Home Office,Home Office,30/07/2010,"IT, Broadcasting & Telecomms.IT Run Costs other -Prog",CPG - Crime & Policing Group,ALTIUS CONSULTING LTD,1744113,"39,303.75"
Home Office,Home Office,30/07/2010,Storage & Mail Services.Messenger & Reception Services,CPG - Crime & Policing Group,CONCATENO UK LIMITED,1765887,"230,389.30"
Home Office,Home Office,30/07/2010,"Transport, Storage & Mail Serv.Rail Passenger Transport- PROG",CPG - Crime & Policing Group,CITY OF LONDON POLICE FORCE,1775413,"33,555.27"
Home Office,CRB - Criminal Records Bureau,03/07/2010,Police costs per check,CRB - Criminal Records Bureau,Capita Business Services Ltd,14412   52,"253,452.15"
Home Office,CRB - Criminal Records Bureau,03/07/2010,Police costs per check,CRB - Criminal Records Bureau,Capita Business Services Ltd,14412   48,"227,921.32"
Home Office,CRB - Criminal Records Bureau,05/07/2010,Police costs per check,CRB - Criminal Records Bureau,West Midlands Police,14427    25,"126,030.57"
Home Office,CRB - Criminal Records Bureau,05/07/2010,Police costs per check,CRB - Criminal Records Bureau,Nottinghamshire Police Authori,14427    18,"84,646.81"
Home Office,CRB - Criminal Records Bureau,05/07/2010,Police costs per check,CRB - Criminal Records Bureau,Staffordshire Police Authority,14427    23,"81,384.09"
Home Office,CRB - Criminal Records Bureau,05/07/2010,Police costs per check,CRB - Criminal Records Bureau,Norfolk Police Authority,14427    17,"76,152.87"
Home Office,CRB - Criminal Records Bureau,05/07/2010,Police costs per check,CRB - Criminal Records Bureau,Hampshire Police Authority,14427    11,"72,007.98"
Home Office,CRB - Criminal Records Bureau,05/07/2010,Police costs per check,CRB - Criminal Records Bureau,Cleveland Police Authority,14427    5,"58,120.95"
Home Office,CRB - Criminal Records Bureau,05/07/2010,Police costs per check,CRB - Criminal Records Bureau,Lancashire Police Authority,14427    14,"52,060.89"
Home Office,CRB - Criminal Records Bureau,05/07/2010,Police costs per check,CRB - Criminal Records Bureau,Surrey Police Authority,14427    24,"50,638.32"
Home Office,CRB - Criminal Records Bureau,05/07/2010,Police costs per check,CRB - Criminal Records Bureau,North Wales Police Funding Acc,14427    19,"49,727.62"
Home Office,CRB - Criminal Records Bureau,05/07/2010,Police costs per check,CRB - Criminal Records Bureau,Royal Military Police,14427    21,"30,797.25"
Home Office,CRB - Criminal Records Bureau,05/07/2010,Police costs per check,CRB - Criminal Records Bureau,Gwent Police Authority,14427    10,"28,300.24"
Home Office,CRB - Criminal Records Bureau,05/07/2010,Police costs per check,CRB - Criminal Records Bureau,Bedfordshire Police,14427    2,"26,195.98"
Home Office,CRB - Criminal Records Bureau,08/07/2010,Finance,CRB - Criminal Records Bureau,Capita Business Services Ltd,14462    13,"1,896,710.90"
Home Office,CRB - Criminal Records Bureau,08/07/2010,Finance,CRB - Criminal Records Bureau,Capita Business Services Ltd,14462    11,"264,909.50"
Home Office,CRB - Criminal Records Bureau,13/07/2010,IT services,CRB - Criminal Records Bureau,CABLE AND WIRELESS,14465    4,"35,269.19"
Home Office,CRB - Criminal Records Bureau,16/07/2010,Police costs per check,CRB - Criminal Records Bureau,Greater Manchester Police,14501    9,"204,628.23"
Home Office,CRB - Criminal Records Bureau,16/07/2010,Police costs per check,CRB - Criminal Records Bureau,KENT CONSTABULARY,14501    12,"154,928.13"
Home Office,CRB - Criminal Records Bureau,16/07/2010,Police costs per check,CRB - Criminal Records Bureau,Derbyshire Police Authority,14501    3,"132,990.44"
Home Office,CRB - Criminal Records Bureau,16/07/2010,Police costs per check,CRB - Criminal Records Bureau,West Mercia Police Fund,14501    29,"82,750.61"
Home Office,CRB - Criminal Records Bureau,16/07/2010,Police costs per check,CRB - Criminal Records Bureau,Merseyside Police Authority,14501    14,"75,196.55"
Home Office,CRB - Criminal Records Bureau,16/07/2010,Police costs per check,CRB - Criminal Records Bureau,Northumbria Police,14501    17,"60,881.29"
Home Office,CRB - Criminal Records Bureau,16/07/2010,Police costs per check,CRB - Criminal Records Bureau,Surrey Police Authority,14501    25,"49,913.60"
Home Office,CRB - Criminal Records Bureau,16/07/2010,Police costs per check,CRB - Criminal Records Bureau,North Yorkshire Police Authori,14501    18,"48,454.99"
Home Office,CRB - Criminal Records Bureau,16/07/2010,Police costs per check,CRB - Criminal Records Bureau,Northants Police Authority,14501    15,"37,459.65"
Home Office,CRB - Criminal Records Bureau,16/07/2010,Police costs per check,CRB - Criminal Records Bureau,South Wales Police,14501    23,"32,531.49"
Home Office,CRB - Criminal Records Bureau,16/07/2010,Police costs per check,CRB - Criminal Records Bureau,Durham Police Authority,14501    5,"31,710.39"
Home Office,CRB - Criminal Records Bureau,16/07/2010,Police costs per check,CRB - Criminal Records Bureau,Disclosure Scotland,14501    21,"26,778.55"
Home Office,CRB - Criminal Records Bureau,23/07/2010,Police costs per check,CRB - Criminal Records Bureau,The Metropolitan Police,14535    7,"2,086,352.99"
Home Office,CRB - Criminal Records Bureau,29/07/2010,Finance,CRB - Criminal Records Bureau,Capita Business Services Ltd,14550    21,"164,333.25"
Home Office,Home Office,02/07/2010,IT & Telecommunications Equip.Hardware adapters - ADMN,Communications,MORSE,1733959,"96,796.50"
Home Office,Home Office,02/07/2010,"Professional & Admin Services.Clerical or Admin Staff, Temps",OCIO,ASE CONSULTING LTD,1753219,"26,790.00"
Home Office,Home Office,02/07/2010,"IT, Broadcasting & Telecomms.IT Run Cost � Info Support",SSD - Shared Service Directorate,SAVVIS UK LTD,1733837,"142,458.49"
Home Office,Home Office,02/07/2010,"IT, Broadcasting & Telecomms.IT Run Costs Other - ADMN",SSD - Shared Service Directorate,FUJITSU SERVICES LTD,1733545,"685,866.31"
Home Office,Home Office,05/07/2010,Professional & Admin Services.Consultancy - Advice - PROG,Performance & Finance Directorate,KPMG,1755476,"374,581.78"
Home Office,Home Office,05/07/2010,IT & Telecommunications.IT & Telecommunications,SSD - Shared Service Directorate,CABLE AND WIRELESS,1690910,"169,413.26"
Home Office,Home Office,06/07/2010,Professional & Admin Services.Consultancy - Advice - PROG,Performance & Finance Directorate,KPMG,1756724,"801,780.05"
Home Office,Home Office,06/07/2010,GPC Card,PFD*,BARCLAYS BANK,1756672,"435,810.54"
Home Office,Home Office,06/07/2010,Management & Admin Serv.Temp IT N/w Specialists - ADMN,SSD - Shared Service Directorate,NES IT,1755916,"40,948.75"
Home Office,Home Office,07/07/2010,Professional & Admin Services.Consultancy - Advice - PROG,Performance & Finance Directorate,BERKSHIRE CONSULTANCY LIMITED,1757124,"47,760.19"
Home Office,Home Office,07/07/2010,IT & Telecoms Components.Computer Equip  (FA),PFD*,MORPHO UK LTD,1566608,"359,391.56"
Home Office,Home Office,07/07/2010,PROFESSIONAL SERVICES.LEGAL SERVICES,PFD*,PINSENT MASONS,1602332,"123,041.61"
Home Office,Home Office,07/07/2010,"Science, Technical & Research.Social Research","Research, Dev & Statistics",REAL TIME ANALYZERS INC,1757614,"85,000.00"
Home Office,Home Office,08/07/2010,"OGD's, Councils & Police Authorities",PFD*,NPIA (National Policing Improvement Agency),1696546,"57,637.40"
Home Office,Home Office,08/07/2010,Travel & Food & Lodging.Travel facilitation,PFD*,CARLSON WAGONLIT TRAVEL,1757845,"108,466.03"
Home Office,Home Office,08/07/2010,"IT, Broadcasting & Telecomms.Accessories or parts - ADMN",SSD - Shared Service Directorate,MARTIN DAWES SOLUTIONS LTD,1757838,"26,790.00"
Home Office,Home Office,08/07/2010,Utilities.Telephone Comms - PROG,SSD - Shared Service Directorate,OGC BUYING SOLUTIONS,1636246,"29,957.87"
Home Office,Home Office,09/07/2010,"Science, Technical & Research.Computer services - PROG",SSD - Shared Service Directorate,FINCORE LTD,1744026,"41,078.00"
Home Office,Home Office,09/07/2010,"Science, Technical & Research.Computer services - PROG",SSD - Shared Service Directorate,FINCORE LTD,1744021,"41,078.00"
Home Office,Home Office,09/07/2010,"Science, Technical & Research.Computer services - PROG",SSD - Shared Service Directorate,FINCORE LTD,1744003,"41,078.00"
Home Office,Home Office,12/07/2010,FLEET.VEHICLE MANAGEMENT,PFD*,LEX AUTOLEASE LTD,1759792,"45,850.10"
Home Office,Home Office,12/07/2010,FLEET.VEHICLE MANAGEMENT,PFD*,LEX AUTOLEASE LTD,1759787,"30,154.97"
Home Office,Home Office,12/07/2010,FLEET.VEHICLE MANAGEMENT,PFD*,LEX AUTOLEASE LTD,1759803,"26,347.34"
Home Office,Home Office,12/07/2010,IT & Telecommunications.IT & Telecommunications,SSD - Shared Service Directorate,FUJITSU SERVICES (ALCEDO) LTD,1742637,"396,711.72"
Home Office,Home Office,12/07/2010,IT & Telecommunications.IT & Telecommunications,SSD - Shared Service Directorate,FUJITSU SERVICES (ALCEDO) LTD,1742631,"348,996.73"
Home Office,Home Office,12/07/2010,"IT, Broadcasting & Telecomms.IT Running Cost - Maint - PROG",SSD - Shared Service Directorate,ATOS ORIGIN IT SERVICES UK LIMITED,1744776,"1,774,032.95"
Home Office,Home Office,12/07/2010,"IT, Broadcasting & Telecomms.Personal Comms Devices - PROG",SSD - Shared Service Directorate,BRITISH TELECOMMUNICATIONS,1759447,"175,826.27"
Home Office,Home Office,12/07/2010,Utilities.Telephone Comms - PROG,SSD - Shared Service Directorate,GLOBAL CROSSING,1758804,"51,470.89"
Home Office,Home Office,13/07/2010,Management & Admin Serv.Temp IT N/w Specialists - ADMN,SSD - Shared Service Directorate,ADVANTAGE TECHNICAL RESOURCING,1761131,"40,926.66"
Home Office,Home Office,13/07/2010,Professional & Admin Services.Corp Business IT Serv - ADMN,SSD - Shared Service Directorate,MICROSOFT LTD,1761674,"83,096.00"
Home Office,Home Office,13/07/2010,Utilities.Small Scale Radio Sys - PROG,SSD - Shared Service Directorate,ARQIVA LTD,1723187,"79,920.20"
Home Office,Home Office,14/07/2010,Travel & Food & Lodging.Travel facilitation,PFD*,CARLSON WAGONLIT TRAVEL,1761913,"105,938.40"
Home Office,Home Office,14/07/2010,ESTATES AND FACILITIES.ESTATES & FACILITIES,PFD*,ANNES GATE PROPERTY PLC,1762007,"50,931.19"
Home Office,Home Office,19/07/2010,IT & Telecoms,PFD*,ATOS ORIGIN IT SERVICES UK LIMITED,1680419,"48,244.33"
Home Office,Home Office,19/07/2010,MARKETING & COMMS.CONFERENCES AND EVENTS,PFD*,NYS CORPORATE LTD,1764823,"149,373.78"
Home Office,Home Office,19/07/2010,"IT, Broadcasting & Telecomms.IT Run Cost � Info Support",SSD - Shared Service Directorate,SAVVIS UK LTD,1722987,"25,098.00"
Home Office,Home Office,21/07/2010,Travel & Food & Lodging.Travel facilitation,PFD*,CARLSON WAGONLIT TRAVEL,1767570,"121,086.33"
Home Office,Home Office,23/07/2010,FLEET.VEHICLE MANAGEMENT,PFD*,ENTERPRISE RENT-A-CAR UK LTD,1769608,"44,230.47"
Home Office,Home Office,23/07/2010,"IT, Broadcasting & Telecomms.IT Running Cost - Maint - PROG",SSD - Shared Service Directorate,ATOS ORIGIN IT SERVICES UK LIMITED,1751366,"175,032.70"
Home Office,Home Office,26/07/2010,Professional & Admin Services.Personnel Recruit Serv - ADMN,Performance & Finance Directorate,CAPITA,1753380,"39,430.67"
Home Office,Home Office,26/07/2010,"Science, Technical & Research.Social Research","Research, Dev & Statistics",UNIVERSITY COLLEGE LONDON,1771314,"31,849.00"
Home Office,Home Office,26/07/2010,"Science, Technical & Research.Social Research","Research, Dev & Statistics",ICTS (UK) LIMITED,1771347,"21,922.68"
Home Office,Home Office,26/07/2010,IT & Telecommunications.IT & Telecommunications,SSD - Shared Service Directorate,BT,1770665,"28,627.77"
Home Office,Home Office,26/07/2010,"IT, Broadcasting & Telecomms.IT Run Cost � Info Support",SSD - Shared Service Directorate,SAVVIS UK LTD,1752202,"142,458.49"
Home Office,Home Office,26/07/2010,"IT, Broadcasting & Telecomms.IT Run Cost � Info Support",SSD - Shared Service Directorate,SAVVIS UK LTD,1752410,"59,224.29"
Home Office,Home Office,26/07/2010,"IT, Broadcasting & Telecomms.IT Run Cost � Info Support",SSD - Shared Service Directorate,SAVVIS UK LTD,1752298,"36,169.86"
Home Office,Home Office,26/07/2010,"IT, Broadcasting & Telecomms.IT Running Cost - Maint - PROG",SSD - Shared Service Directorate,SERCO  LTD,1754388,"615,067.85"
Home Office,Home Office,26/07/2010,"IT, Broadcasting & Telecomms.IT Running Cost - Maint - PROG",SSD - Shared Service Directorate,ATOS ORIGIN IT SERVICES UK LIMITED,1753363,"50,949.37"
Home Office,Home Office,26/07/2010,"IT, Broadcasting & Telecomms.IT Running Cost - Maint - PROG",SSD - Shared Service Directorate,ATOS ORIGIN IT SERVICES UK LIMITED,1753381,"50,949.37"
Home Office,Home Office,26/07/2010,Utilities.Small Scale Radio Sys - PROG,SSD - Shared Service Directorate,AIRWAVE SOLUTIONS LTD,1770671,"173,982.84"
Home Office,Home Office,27/07/2010,Travel & Food & Lodging.Travel facilitation,PFD*,CARLSON WAGONLIT TRAVEL,1771568,"93,254.20"
Home Office,Home Office,27/07/2010,"Transport, Storage & Mail Serv.Fuel & Vehicle Supp Serv- PROG",PFD*,ARVAL UK LTD,1771580,"65,330.27"
Home Office,Home Office,27/07/2010,"Science, Technical & Research.Testing","Research, Dev & Statistics",CT CENTRE (MOD) T/A DSTL,1772321,"48,762.50"
Home Office,Home Office,27/07/2010,"IT, Broadcasting & Telecomms.IT Running Cost - Maint - PROG",SSD - Shared Service Directorate,ATOS ORIGIN IT SERVICES UK LIMITED,1751344,"50,934.39"
Home Office,Home Office,27/07/2010,"IT, Broadcasting & Telecomms.IT Running Cost - Maint - PROG",SSD - Shared Service Directorate,ATOS ORIGIN IT SERVICES UK LIMITED,1736603,"39,632.48"
Home Office,Home Office,28/07/2010,Professional & Admin Services.Consultancy - Advice - PROG,Performance & Finance Directorate,KPMG LLP,1772518,"53,248.65"
Home Office,Home Office,28/07/2010,IT & TELECOMS.TELECOMS,PFD*,VODAFONE CORPORATE,1772524,"223,986.14"
Home Office,Home Office,29/07/2010,IT & Telecoms,PFD*,ATOS ORIGIN IT SERVICES UK LIMITED,1748823,"200,059.03"
Home Office,Home Office,30/07/2010,IT & Telecommunications.IT & Telecommunications,Group Human Resources,FUJITSU SERVICES (ALCEDO) LTD,1757889,"81,166.18"
Home Office,Home Office,30/07/2010,IT & Telecommunications.IT & Telecommunications,SSD - Shared Service Directorate,FUJITSU SERVICES (ALCEDO) LTD,1755879,"97,044.83"
Home Office,Home Office,30/07/2010,IT & Telecommunications.IT & Telecommunications,SSD - Shared Service Directorate,CABLE AND WIRELESS,1756756,"276,888.94"
Home Office,Home Office,30/07/2010,IT & Telecommunications.IT & Telecommunications,SSD - Shared Service Directorate,CABLE AND WIRELESS,1757012,"170,381.46"
Home Office,Home Office,30/07/2010,"IT, Broadcasting & Telecomms.IT Run Cost � Info Support",SSD - Shared Service Directorate,FUJITSU SERVICES (ALCEDO) LTD,1755859,"39,653.58"
Home Office,Home Office,30/07/2010,"IT, Broadcasting & Telecomms.IT Run Costs Other - ADMN",SSD - Shared Service Directorate,FUJITSU SERVICES LTD,1756737,"655,652.03"
Home Office,Home Office,30/07/2010,"IT, Broadcasting & Telecomms.IT Running Cost - Maint - PROG",SSD - Shared Service Directorate,ATOS ORIGIN IT SERVICES UK LIMITED,1755933,"175,032.70"
Home Office,Home Office,30/07/2010,"IT, Broadcasting & Telecomms.IT Running Cost - Maint - PROG",SSD - Shared Service Directorate,ATOS ORIGIN IT SERVICES UK LIMITED,1755936,"50,949.37"
Home Office,Home Office,30/07/2010,"IT, Broadcasting & Telecomms.IT Running Cost - Maint - PROG",SSD - Shared Service Directorate,ATOS ORIGIN IT SERVICES UK LIMITED,1755930,"60,619.43"
Home Office,Home Office,30/07/2010,"IT, Broadcasting & Telecomms.Sirius - Other Services - ADMN",SSD - Shared Service Directorate,FUJITSU SERVICES (ALCEDO) LTD,1755851,"29,649.43"
Home Office,Home Office,07/07/2010,"IT, Broadcasting & Telecomms",Performance & Finance Directorate,HM PRISON SERVICE,303789,"639,078.98"
Home Office,Home Office,07/07/2010,Security & Safety Services,Group HR,FCO SERVICES,6021120,"48,292.50"
Home Office,Home Office,16/07/2010,"IT, Broadcasting & Telecomms",Performance & Finance Directorate,OGC BUYING SOLUTIONS,SINMSD8019,"111,599.10"
Home Office,Home Office,29/07/2010,OGD RFT,Performance & Finance Directorate,DEPARTMENT FOR WORK AND PENSIONS,2839327,"50,000.00"
Home Office,Home Office,30/07/2010,"IT, Broadcasting & Telecomms",Performance & Finance Directorate,OGC BUYING SOLUTIONS,SINMIS3644,"323,748.74"
Home Office,Home Office,30/07/2010,"IT, Broadcasting & Telecomms",Performance & Finance Directorate,OGC BUYING SOLUTIONS,SINMIS3642,"313,671.35"
Home Office,Home Office,30/07/2010,Utilities.Telephone Comms - PROG,Performance & Finance Directorate,OGC BUYING SOLUTIONS,SINMIS3643,"314,722.39"
Home Office,Home Office,30/07/2010,"IT, Broadcasting & Telecomms",Performance & Finance Directorate,OGC BUYING SOLUTIONS,SINMIS3648,"327,124.51"
Home Office,Home Office,30/07/2010,Utilities.Telephone Comms - PROG,Performance & Finance Directorate,OGC BUYING SOLUTIONS,SINMIS3647,"320,307.46"
Home Office,Home Office,30/07/2010,Utilities.Telephone Comms - PROG,Performance & Finance Directorate,OGC BUYING SOLUTIONS,SINMIS3646,"323,580.42"
Home Office,Home Office,30/07/2010,Utilities.Telephone Comms - PROG,Performance & Finance Directorate,OGC BUYING SOLUTIONS,SINMIS3645,"316,999.24"
Home Office,IPCC - Independent Police Complaints Commission,02/07/2010,Facilities,IPCC - Independent Police Complaints Commission,OMD SERVICES LIMITED,RCT0032978,"42,986.29"
Home Office,IPCC - Independent Police Complaints Commission,23/07/2010,IT,IPCC - Independent Police Complaints Commission,STERIA,RCT0033235,"335,174.61"
Home Office,IPS - Identity & Passport Service,02/07/2010,Consultancy & Professional Ser,IPS - Identity & Passport Service,DELOITTE MCS LTD,134642,"433,112.20"
Home Office,IPS - Identity & Passport Service,02/07/2010,Contracted Staff,IPS - Identity & Passport Service,Capita Resourcing Ltd,134632,"59,209.01"
Home Office,IPS - Identity & Passport Service,02/07/2010,IT Development,IPS - Identity & Passport Service,Thales,134670,"1,738,551.15"
Home Office,IPS - Identity & Passport Service,02/07/2010,Other Government Departments,IPS - Identity & Passport Service,Office For National Statistics,134658,"25,648.58"
Home Office,IPS - Identity & Passport Service,02/07/2010,Passport Printing,IPS - Identity & Passport Service,Security Printing Systems Ltd,134652,"1,519,595.90"
Home Office,IPS - Identity & Passport Service,06/07/2010,Contracted Staff,IPS - Identity & Passport Service,Capita Resourcing Ltd,134683,"65,801.00"
Home Office,IPS - Identity & Passport Service,06/07/2010,Passport Printing,IPS - Identity & Passport Service,De La Rue International Ltd,134692,"10,310,625.00"
Home Office,IPS - Identity & Passport Service,06/07/2010,Passport Printing,IPS - Identity & Passport Service,Security Printing Systems Ltd,134700,"26,506.31"
Home Office,IPS - Identity & Passport Service,06/07/2010,Passport Processing,IPS - Identity & Passport Service,Siemens Business Services Ltd,134714,"74,803.17"
Home Office,IPS - Identity & Passport Service,06/07/2010,Software & Licenses,IPS - Identity & Passport Service,CSC COMPUTER SCIENCES LTD,134691,"2,536,097.68"
Home Office,IPS - Identity & Passport Service,06/07/2010,Translation Services and Inter,IPS - Identity & Passport Service,PRESTIGE NETWORK LTD,134711,"29,916.51"
Home Office,IPS - Identity & Passport Service,09/07/2010,Accommodation,IPS - Identity & Passport Service,Audit Commission,134721,"28,728.71"
Home Office,IPS - Identity & Passport Service,09/07/2010,Accommodation,IPS - Identity & Passport Service,COLLIERS CRE CLIENTS ACCOUNT,134730,"59,220.38"
Home Office,IPS - Identity & Passport Service,09/07/2010,Accommodation,IPS - Identity & Passport Service,Mapeley ABI Provider Limited,134749,"339,033.75"
Home Office,IPS - Identity & Passport Service,09/07/2010,Accommodation,IPS - Identity & Passport Service,WH 101 OLD HALL STREET LTD,134770,"429,477.73"
Home Office,IPS - Identity & Passport Service,09/07/2010,Consultancy & Professional Ser,IPS - Identity & Passport Service,DELOITTE MCS LTD,134733,"445,763.85"
Home Office,IPS - Identity & Passport Service,09/07/2010,Contracted Staff,IPS - Identity & Passport Service,Capita Resourcing Ltd,134725,"213,523.49"
Home Office,IPS - Identity & Passport Service,09/07/2010,Occupational Health Management,IPS - Identity & Passport Service,Health Management Ltd,134744,"86,575.56"
Home Office,IPS - Identity & Passport Service,09/07/2010,Other Government Departments,IPS - Identity & Passport Service,HOME OFFICE - AFU CASH MANAGEM,134746,"59,045.27"
Home Office,IPS - Identity & Passport Service,09/07/2010,Passport Printing,IPS - Identity & Passport Service,Security Printing Systems Ltd,134745,"2,597,555.21"
Home Office,IPS - Identity & Passport Service,13/07/2010,Accommodation,IPS - Identity & Passport Service,Benefits Agency,134778,"111,286.87"
Home Office,IPS - Identity & Passport Service,13/07/2010,Advertising & Publicity,IPS - Identity & Passport Service,Connectwell,134787,"37,858.50"
Home Office,IPS - Identity & Passport Service,13/07/2010,Consultancy & Professional Ser,IPS - Identity & Passport Service,DELOITTE MCS LTD,134790,"163,243.24"
Home Office,IPS - Identity & Passport Service,13/07/2010,Consultancy & Professional Ser,IPS - Identity & Passport Service,ERNST & YOUNG LLP,134793,"317,124.69"
Home Office,IPS - Identity & Passport Service,13/07/2010,Other Government Departments,IPS - Identity & Passport Service,HOME OFFICE - AFU CASH MANAGEM,134802,"985,997.46"
Home Office,IPS - Identity & Passport Service,13/07/2010,Passport Printing,IPS - Identity & Passport Service,Security Printing Systems Ltd,134800,"3,508,581.91"
Home Office,IPS - Identity & Passport Service,16/07/2010,Accommodation,IPS - Identity & Passport Service,McKibbin Property Consultants,134881,"58,750.02"
Home Office,IPS - Identity & Passport Service,16/07/2010,Accommodation,IPS - Identity & Passport Service,WATES INTERIORS LTD,134897,"577,111.04"
Home Office,IPS - Identity & Passport Service,16/07/2010,Contact Centre,IPS - Identity & Passport Service,MM TELEPERFORMANCE,134882,"50,130.03"
Home Office,IPS - Identity & Passport Service,16/07/2010,Legal Fees,IPS - Identity & Passport Service,Field Fisher Waterhouse LLP,134836,"29,403.74"
Home Office,IPS - Identity & Passport Service,16/07/2010,Passport Printing,IPS - Identity & Passport Service,Security Printing Systems Ltd,134875,"1,108,573.26"
Home Office,IPS - Identity & Passport Service,16/07/2010,Passport Processing,IPS - Identity & Passport Service,Siemens Business Services Ltd,134894,"80,234.99"
Home Office,IPS - Identity & Passport Service,16/07/2010,Passport Stationery,IPS - Identity & Passport Service,ADARE LTD,134816,"37,167.59"
Home Office,IPS - Identity & Passport Service,16/07/2010,Software & Licenses,IPS - Identity & Passport Service,CSC COMPUTER SCIENCES LTD,134831,"2,301,081.24"
Home Office,IPS - Identity & Passport Service,16/07/2010,Train/Air Travel,IPS - Identity & Passport Service,Harry Weeks Executive Travel,134874,"75,536.68"
Home Office,IPS - Identity & Passport Service,16/07/2010,Translation Services and Inter,IPS - Identity & Passport Service,PRESTIGE NETWORK LTD,134889,"34,381.03"
Home Office,IPS - Identity & Passport Service,20/07/2010,Consultancy & Professional Ser,IPS - Identity & Passport Service,ERNST & YOUNG LLP,134913,"406,950.10"
Home Office,IPS - Identity & Passport Service,20/07/2010,Consultancy & Professional Ser,IPS - Identity & Passport Service,PA Consulting Group,134923,"262,500.75"
Home Office,IPS - Identity & Passport Service,20/07/2010,Translation Services and Inter,IPS - Identity & Passport Service,PRESTIGE NETWORK LTD,134924,"30,065.39"
Home Office,IPS - Identity & Passport Service,23/07/2010,Advertising & Publicity,IPS - Identity & Passport Service,Connectwell,134945,"38,516.50"
Home Office,IPS - Identity & Passport Service,23/07/2010,Consultancy & Professional Ser,IPS - Identity & Passport Service,DELOITTE MCS LTD,134947,"25,279.82"
Home Office,IPS - Identity & Passport Service,23/07/2010,Consultancy & Professional Ser,IPS - Identity & Passport Service,PA Consulting Group,134957,"34,311.22"
Home Office,IPS - Identity & Passport Service,23/07/2010,Contracted Staff,IPS - Identity & Passport Service,Capita Resourcing Ltd,134941,"123,001.76"
Home Office,IPS - Identity & Passport Service,23/07/2010,Passport Printing,IPS - Identity & Passport Service,Security Printing Systems Ltd,134952,"1,392,523.57"
Home Office,IPS - Identity & Passport Service,23/07/2010,Passport Stationery,IPS - Identity & Passport Service,ADARE LTD,134933,"171,423.43"
Home Office,IPS - Identity & Passport Service,27/07/2010,Accommodation,IPS - Identity & Passport Service,Mapeley ABI Provider Limited,134990,"79,914.98"
Home Office,IPS - Identity & Passport Service,27/07/2010,Facilities Management,IPS - Identity & Passport Service,ENDPOINT LTD,134978,"28,886.80"
Home Office,IPS - Identity & Passport Service,27/07/2010,Other Government Departments,IPS - Identity & Passport Service,FCO Services,134979,"35,250.00"
Home Office,IPS - Identity & Passport Service,27/07/2010,Other Government Departments,IPS - Identity & Passport Service,HOME OFFICE - AFU CASH MANAGEM,134986,"26,776.38"
Home Office,IPS - Identity & Passport Service,27/07/2010,Passport Printing,IPS - Identity & Passport Service,Security Printing Systems Ltd,134985,"344,813.03"
Home Office,IPS - Identity & Passport Service,27/07/2010,Passports - Secure Mail,IPS - Identity & Passport Service,SECURE MAIL SERVICES LIMITED,135001,"1,891,296.19"
Home Office,IPS - Identity & Passport Service,27/07/2010,Software & Licenses,IPS - Identity & Passport Service,CSC COMPUTER SCIENCES LTD,134974,"3,292,516.85"
Home Office,IPS - Identity & Passport Service,27/07/2010,Training Facilities,IPS - Identity & Passport Service,Duncan Macquarrie Associates L,134975,"29,375.00"
Home Office,IPS - Identity & Passport Service,28/07/2010,Other,IPS - Identity & Passport Service,Home Office,34978,"473,026.58"
Home Office,IPS - Identity & Passport Service,30/07/2010,Consultancy & Professional Ser,IPS - Identity & Passport Service,ERNST & YOUNG LLP,135019,"365,257.33"
Home Office,IPS - Identity & Passport Service,30/07/2010,Consultancy & Professional Ser,IPS - Identity & Passport Service,Steria Limited,135039,"83,529.58"
Home Office,IPS - Identity & Passport Service,30/07/2010,IT Development,IPS - Identity & Passport Service,Thales,135040,"652,007.50"
Home Office,IPS - Identity & Passport Service,30/07/2010,Other Government Departments,IPS - Identity & Passport Service,HOME OFFICE - AFU CASH MANAGEM,135026,"39,372.52"
Home Office,IPS - Identity & Passport Service,30/07/2010,Passport Printing,IPS - Identity & Passport Service,Security Printing Systems Ltd,135025,"1,762,548.05"
Home Office,IPS - Identity & Passport Service,30/07/2010,Passport Stationery,IPS - Identity & Passport Service,R R DONNELLEY PRINT & MEDIA,135006,"90,667.01"
Home Office,IPS - Identity & Passport Service,30/07/2010,Software & Licenses,IPS - Identity & Passport Service,CSC COMPUTER SCIENCES LTD,135016,"1,653,703.23"
Home Office,ISA - Independent Safeguarding Authority,28/07/2010,Equipment Rental,ISA - Independent Safeguarding Authority,The Home Office,2567,"34,657.89"
Home Office,ISA - Independent Safeguarding Authority,28/07/2010,Equipment Rental,ISA - Independent Safeguarding Authority,The Home Office,2567,"32,356.37"
Home Office,NPIA - National Policing Improvement Agency,01/07/2010,Land and Buildings maintenance,Resources Directorate,Ellis and Co,1900056280,"86,154.29"
Home Office,NPIA - National Policing Improvement Agency,01/07/2010,IT Information Support,Operations Directorate,SunGard Public Sector Ltd,5100041781,"62,234.70"
Home Office,NPIA - National Policing Improvement Agency,01/07/2010,IT Information Support,Operations Directorate,SunGard Public Sector Ltd,5100041781,-15.7
Home Office,NPIA - National Policing Improvement Agency,01/07/2010,IT Managed Services,ICTS,Cable & Wireless Communications,5100042422,"66,143.00"
Home Office,NPIA - National Policing Improvement Agency,01/07/2010,IT Managed Services,ICTS,Cable & Wireless Communications,5100042422,"87,248.00"
Home Office,NPIA - National Policing Improvement Agency,01/07/2010,IT Managed Services,ICTS,Cable & Wireless Communications,5100042422,"15,304.00"
Home Office,NPIA - National Policing Improvement Agency,01/07/2010,IT Managed Services,ICTS,Cable & Wireless Communications,5100042422,"12,331.00"
Home Office,NPIA - National Policing Improvement Agency,01/07/2010,IT Information Support,Operations Directorate,SunGard Public Sector Ltd,5100042474,"31,110.00"
Home Office,NPIA - National Policing Improvement Agency,01/07/2010,Other consultancy,CEO Directorate,Price Waterhouse Coopers,5100042755,"40,496.40"
Home Office,NPIA - National Policing Improvement Agency,01/07/2010,IT Information Support,Operations Directorate,Specialist Computer Centres PLC,5100043655,"35,467.79"
Home Office,NPIA - National Policing Improvement Agency,01/07/2010,Management consultancy,People & Development Directorate,RAND EUROPE CAMBRIDGE LIMITED,5100043667,"38,640.00"
Home Office,NPIA - National Policing Improvement Agency,02/07/2010,Telephone charges,ICTS,OGC Buying Solutions,1900055049,"199,228.11"
Home Office,NPIA - National Policing Improvement Agency,02/07/2010,Land and Buildings maintenance,Resources Directorate,GallifordTry Construction Ltd,1900055778,"255,121.45"
Home Office,NPIA - National Policing Improvement Agency,02/07/2010,Land and Buildings maintenance,Resources Directorate,GTH Construction Ltd,1900056319,"40,310.36"
Home Office,NPIA - National Policing Improvement Agency,02/07/2010,Airwave Core Service Charge,Operations Directorate,Airwave Solutions Ltd,5100042847,"14,764,483.34"
Home Office,NPIA - National Policing Improvement Agency,02/07/2010,Airwave Core Service Charge,Operations Directorate,Airwave Solutions Ltd,5100042848,"224,932.61"
Home Office,NPIA - National Policing Improvement Agency,02/07/2010,IT Managed Services,ICTS,Siemens Enterprise Comm Ltd,5100043706,"110,250.00"
Home Office,NPIA - National Policing Improvement Agency,02/07/2010,IT Information Support,Operations Directorate,Cable & Wireless Communications,5100043808,"52,725.00"
Home Office,NPIA - National Policing Improvement Agency,02/07/2010,IT Information Support,Operations Directorate,Cable & Wireless Communications,5100043815,187.5
Home Office,NPIA - National Policing Improvement Agency,02/07/2010,IT Information Support,Operations Directorate,Cable & Wireless Communications,5100043815,"1,900.00"
Home Office,NPIA - National Policing Improvement Agency,02/07/2010,IT Information Support,Operations Directorate,Cable & Wireless Communications,5100043815,"6,989.00"
Home Office,NPIA - National Policing Improvement Agency,02/07/2010,IT Information Support,Operations Directorate,Cable & Wireless Communications,5100043815,"2,250.00"
Home Office,NPIA - National Policing Improvement Agency,02/07/2010,IT Information Support,Operations Directorate,Cable & Wireless Communications,5100043815,"4,000.00"
Home Office,NPIA - National Policing Improvement Agency,02/07/2010,IT Information Support,Operations Directorate,Cable & Wireless Communications,5100043815,"3,515.00"
Home Office,NPIA - National Policing Improvement Agency,02/07/2010,IT Information Support,Operations Directorate,Cable & Wireless Communications,5100043815,"3,840.00"
Home Office,NPIA - National Policing Improvement Agency,02/07/2010,IT Information Support,Operations Directorate,Cable & Wireless Communications,5100043815,"3,600.00"
Home Office,NPIA - National Policing Improvement Agency,02/07/2010,IT Information Support,Operations Directorate,Cable & Wireless Communications,5100043815,"2,000.00"
Home Office,NPIA - National Policing Improvement Agency,02/07/2010,IT Information Support,Operations Directorate,Cable & Wireless Communications,5100043815,"1,733.00"
Home Office,NPIA - National Policing Improvement Agency,02/07/2010,IT Information Support,Operations Directorate,Cable & Wireless Communications,5100043815,-0.09
Home Office,NPIA - National Policing Improvement Agency,05/07/2010,Land and Buildings maintenance,Resources Directorate,Jacobs Uk Ltd,1900056343,"63,794.29"
Home Office,NPIA - National Policing Improvement Agency,05/07/2010,IT software,ICTS,Northgate Information Solutions UK,5100042351,"142,292.00"
Home Office,NPIA - National Policing Improvement Agency,05/07/2010,IT Managed Services,ICTS,Cable & Wireless Communications,5100043889,"12,724.00"
Home Office,NPIA - National Policing Improvement Agency,05/07/2010,IT Managed Services,ICTS,Cable & Wireless Communications,5100043889,"1,913.00"
Home Office,NPIA - National Policing Improvement Agency,05/07/2010,IT Managed Services,ICTS,Cable & Wireless Communications,5100043889,"25,448.00"
Home Office,NPIA - National Policing Improvement Agency,05/07/2010,IT Managed Services,ICTS,Cable & Wireless Communications,5100043889,"3,826.00"
Home Office,NPIA - National Policing Improvement Agency,07/07/2010,Land and Buildings maintenance,Resources Directorate,Wates Interiors,1900055685,"188,796.95"
Home Office,NPIA - National Policing Improvement Agency,07/07/2010,Land and Buildings maintenance,Resources Directorate,GallifordTry Construction Ltd,1900056396,"770,404.19"
Home Office,NPIA - National Policing Improvement Agency,07/07/2010,Rent/lease - Offices,Resources Directorate,Mapeley STEPS Ltd,5100043656,"652,637.29"
Home Office,NPIA - National Policing Improvement Agency,07/07/2010,Rent/lease - Offices,Resources Directorate,Mapeley STEPS Ltd,5100043656,111.06
Home Office,NPIA - National Policing Improvement Agency,07/07/2010,Insurance,Resources Directorate,Mapeley STEPS Ltd,5100043661,"42,727.97"
Home Office,NPIA - National Policing Improvement Agency,07/07/2010,IT Information Support,Operations Directorate,Cable & Wireless Communications,5100043887,"20,988.24"
Home Office,NPIA - National Policing Improvement Agency,07/07/2010,IT Information Support,Operations Directorate,Cable & Wireless Communications,5100043887,-0.04
Home Office,NPIA - National Policing Improvement Agency,07/07/2010,IT Information Support,Operations Directorate,Cable & Wireless Communications,5100043887,"16,688.34"
Home Office,NPIA - National Policing Improvement Agency,07/07/2010,IT Information Support,Operations Directorate,Cable & Wireless Communications,5100043887,-0.04
Home Office,NPIA - National Policing Improvement Agency,07/07/2010,IT maintenance,Operations Directorate,Cable & Wireless Communications,5100043887,"6,102.00"
Home Office,NPIA - National Policing Improvement Agency,07/07/2010,IT Hire of equipment,Operations Directorate,Cable & Wireless Communications,5100043887,"3,738.00"
Home Office,NPIA - National Policing Improvement Agency,07/07/2010,IT Information Support,Operations Directorate,Cable & Wireless Communications,5100043887,"87,935.00"
Home Office,NPIA - National Policing Improvement Agency,07/07/2010,Other govt departments secondees - Basic salaries,Policing Policy and Practice Directorate ,London Fire & Emergency Planning,5100043888,"11,607.00"
Home Office,NPIA - National Policing Improvement Agency,07/07/2010,Other govt departments secondees - Basic salaries,Policing Policy and Practice Directorate ,London Fire & Emergency Planning,5100043888,"1,255.26"
Home Office,NPIA - National Policing Improvement Agency,07/07/2010,Other govt departments secondees - Basic salaries,Policing Policy and Practice Directorate ,London Fire & Emergency Planning,5100043888,"2,321.40"
Home Office,NPIA - National Policing Improvement Agency,07/07/2010,Other govt departments secondees - Basic salaries,Policing Policy and Practice Directorate ,London Fire & Emergency Planning,5100043888,432
Home Office,NPIA - National Policing Improvement Agency,07/07/2010,Other govt departments secondees - Basic salaries,Policing Policy and Practice Directorate ,London Fire & Emergency Planning,5100043888,364.74
Home Office,NPIA - National Policing Improvement Agency,07/07/2010,Other govt departments secondees - Basic salaries,Policing Policy and Practice Directorate ,London Fire & Emergency Planning,5100043888,"1,588.75"
Home Office,NPIA - National Policing Improvement Agency,07/07/2010,Other govt departments secondees - Basic salaries,Policing Policy and Practice Directorate ,London Fire & Emergency Planning,5100043888,"4,080.90"
Home Office,NPIA - National Policing Improvement Agency,07/07/2010,IT Managed Services,ICTS,Specialist Computer Centres PLC,5100043930,"12,369.00"
Home Office,NPIA - National Policing Improvement Agency,07/07/2010,IT Managed Services,ICTS,Specialist Computer Centres PLC,5100043930,"15,895.00"
Home Office,NPIA - National Policing Improvement Agency,07/07/2010,IT Managed Services,ICTS,Specialist Computer Centres PLC,5100043930,"27,505.12"
Home Office,NPIA - National Policing Improvement Agency,07/07/2010,IT consultancy,Resources Directorate,Logica CMG UK Ltd,5100043979,"22,734.40"
Home Office,NPIA - National Policing Improvement Agency,07/07/2010,IT consultancy,Resources Directorate,Logica CMG UK Ltd,5100043979,397.86
Home Office,NPIA - National Policing Improvement Agency,07/07/2010,IT Hardware,ICTS,Logica CMG UK Ltd,5100044004,"95,000.00"
Home Office,NPIA - National Policing Improvement Agency,07/07/2010,IT Hardware,ICTS,Logica CMG UK Ltd,5100044004,"17,100.00"
Home Office,NPIA - National Policing Improvement Agency,07/07/2010,IT Hardware,ICTS,Logica CMG UK Ltd,5100044005,"102,298.00"
Home Office,NPIA - National Policing Improvement Agency,09/07/2010,IT consultancy,Operations Directorate,QINETIQ,1700003519,"-60,000.00"
Home Office,NPIA - National Policing Improvement Agency,09/07/2010,Agency staff,CEO Directorate,Reed Employment plc,1900056334,759.71
Home Office,NPIA - National Policing Improvement Agency,09/07/2010,Agency staff,ICTS,Reed Employment plc,1900056334,"1,445.24"
Home Office,NPIA - National Policing Improvement Agency,09/07/2010,Agency staff,CEO Directorate,Reed Employment plc,1900056334,699.65
Home Office,NPIA - National Policing Improvement Agency,09/07/2010,Agency staff,Operations Directorate,Reed Employment plc,1900056334,490.11
Home Office,NPIA - National Policing Improvement Agency,09/07/2010,Agency staff,CEO Directorate,Reed Employment plc,1900056334,893.82
Home Office,NPIA - National Policing Improvement Agency,09/07/2010,Agency staff,Policing Policy and Practice Directorate ,Reed Employment plc,1900056334,698.25
Home Office,NPIA - National Policing Improvement Agency,09/07/2010,Agency staff,CEO Directorate,Reed Employment plc,1900056334,571.13
Home Office,NPIA - National Policing Improvement Agency,09/07/2010,Agency staff,Policing Policy and Practice Directorate ,Reed Employment plc,1900056334,501.29
Home Office,NPIA - National Policing Improvement Agency,09/07/2010,Agency staff,People & Development Directorate,Reed Employment plc,1900056334,804.04
Home Office,NPIA - National Policing Improvement Agency,09/07/2010,Agency staff,Policing Policy and Practice Directorate ,Reed Employment plc,1900056334,514.56
Home Office,NPIA - National Policing Improvement Agency,09/07/2010,Agency staff,People & Development Directorate,Reed Employment plc,1900056334,"2,237.62"
Home Office,NPIA - National Policing Improvement Agency,09/07/2010,Agency staff,People & Development Directorate,Reed Employment plc,1900056334,793.18
Home Office,NPIA - National Policing Improvement Agency,09/07/2010,Agency staff,People & Development Directorate,Reed Employment plc,1900056334,652.23
Home Office,NPIA - National Policing Improvement Agency,09/07/2010,Agency staff,People & Development Directorate,Reed Employment plc,1900056334,657.88
Home Office,NPIA - National Policing Improvement Agency,09/07/2010,Agency staff,People & Development Directorate,Reed Employment plc,1900056334,435
Home Office,NPIA - National Policing Improvement Agency,09/07/2010,Agency staff,People & Development Directorate,Reed Employment plc,1900056334,676.75
Home Office,NPIA - National Policing Improvement Agency,09/07/2010,Agency staff,People & Development Directorate,Reed Employment plc,1900056334,785.17
Home Office,NPIA - National Policing Improvement Agency,09/07/2010,Agency staff,People & Development Directorate,Reed Employment plc,1900056334,104.31
Home Office,NPIA - National Policing Improvement Agency,09/07/2010,Agency staff,People & Development Directorate,Reed Employment plc,1900056334,523.25
Home Office,NPIA - National Policing Improvement Agency,09/07/2010,Agency staff,People & Development Directorate,Reed Employment plc,1900056334,420.28
Home Office,NPIA - National Policing Improvement Agency,09/07/2010,Agency staff,People & Development Directorate,Reed Employment plc,1900056334,482.2
Home Office,NPIA - National Policing Improvement Agency,09/07/2010,Agency staff,Resources Directorate,Reed Employment plc,1900056334,482.97
Home Office,NPIA - National Policing Improvement Agency,09/07/2010,Agency staff,CEO Directorate,Reed Employment plc,1900056334,"3,164.61"
Home Office,NPIA - National Policing Improvement Agency,09/07/2010,Agency staff,Resources Directorate,Reed Employment plc,1900056334,"2,484.06"
Home Office,NPIA - National Policing Improvement Agency,09/07/2010,Agency staff,Resources Directorate,Reed Employment plc,1900056334,599.08
Home Office,NPIA - National Policing Improvement Agency,09/07/2010,Agency staff,Resources Directorate,Reed Employment plc,1900056334,686.2
Home Office,NPIA - National Policing Improvement Agency,09/07/2010,Agency staff,CEO Directorate,Reed Employment plc,1900056334,676.04
Home Office,NPIA - National Policing Improvement Agency,09/07/2010,Agency staff,Resources Directorate,Reed Employment plc,1900056334,998.83
Home Office,NPIA - National Policing Improvement Agency,09/07/2010,Agency staff,Resources Directorate,Reed Employment plc,1900056334,497.88
Home Office,NPIA - National Policing Improvement Agency,09/07/2010,Agency staff,Resources Directorate,Reed Employment plc,1900056334,"1,200.85"
Home Office,NPIA - National Policing Improvement Agency,09/07/2010,Agency staff,Resources Directorate,Reed Employment plc,1900056334,480.34
Home Office,NPIA - National Policing Improvement Agency,09/07/2010,Agency staff,Resources Directorate,Reed Employment plc,1900056334,781.38
Home Office,NPIA - National Policing Improvement Agency,09/07/2010,Agency staff,CEO Directorate,Reed Employment plc,1900056334,453.77
Home Office,NPIA - National Policing Improvement Agency,09/07/2010,Agency staff,Resources Directorate,Reed Employment plc,1900056334,462.7
Home Office,NPIA - National Policing Improvement Agency,09/07/2010,Agency staff,ICTS,Reed Employment plc,1900056334,500.76
Home Office,NPIA - National Policing Improvement Agency,09/07/2010,Agency staff,Resources Directorate,Reed Employment plc,1900056334,381.48
Home Office,NPIA - National Policing Improvement Agency,09/07/2010,Agency staff,ICTS,Reed Employment plc,1900056334,658.76
Home Office,NPIA - National Policing Improvement Agency,09/07/2010,Agency staff,CEO Directorate,Reed Personnel Services Plc,1900056335,"3,094.66"
Home Office,NPIA - National Policing Improvement Agency,09/07/2010,Agency staff,Resources Directorate,Reed Personnel Services Plc,1900056335,750.22
Home Office,NPIA - National Policing Improvement Agency,09/07/2010,Agency staff,Resources Directorate,Reed Personnel Services Plc,1900056335,"1,137.18"
Home Office,NPIA - National Policing Improvement Agency,09/07/2010,Agency staff,Resources Directorate,Reed Personnel Services Plc,1900056335,"3,069.70"
Home Office,NPIA - National Policing Improvement Agency,09/07/2010,Agency staff,Resources Directorate,Reed Personnel Services Plc,1900056335,863.82
Home Office,NPIA - National Policing Improvement Agency,09/07/2010,Agency staff,Resources Directorate,Reed Personnel Services Plc,1900056335,"1,018.80"
Home Office,NPIA - National Policing Improvement Agency,09/07/2010,Agency staff,Resources Directorate,Reed Personnel Services Plc,1900056335,"1,123.54"
Home Office,NPIA - National Policing Improvement Agency,09/07/2010,Agency staff,Resources Directorate,Reed Personnel Services Plc,1900056335,617.52
Home Office,NPIA - National Policing Improvement Agency,09/07/2010,Agency staff,Resources Directorate,Reed Personnel Services Plc,1900056335,500.94
Home Office,NPIA - National Policing Improvement Agency,09/07/2010,Agency staff,Resources Directorate,Reed Personnel Services Plc,1900056335,324.54
Home Office,NPIA - National Policing Improvement Agency,09/07/2010,Agency staff,CEO Directorate,Reed Personnel Services Plc,1900056335,"1,570.05"
Home Office,NPIA - National Policing Improvement Agency,09/07/2010,Agency staff,Resources Directorate,Reed Personnel Services Plc,1900056335,"10,466.96"
Home Office,NPIA - National Policing Improvement Agency,09/07/2010,Agency staff,CEO Directorate,Reed Personnel Services Plc,1900056335,"2,618.56"
Home Office,NPIA - National Policing Improvement Agency,09/07/2010,Agency staff,ICTS,Reed Personnel Services Plc,1900056335,"1,666.36"
Home Office,NPIA - National Policing Improvement Agency,09/07/2010,Agency staff,Resources Directorate,Reed Personnel Services Plc,1900056335,877.09
Home Office,NPIA - National Policing Improvement Agency,09/07/2010,Agency staff,Resources Directorate,Reed Personnel Services Plc,1900056335,718.11
Home Office,NPIA - National Policing Improvement Agency,09/07/2010,Agency staff,ICTS,Reed Personnel Services Plc,1900056335,"2,794.50"
Home Office,NPIA - National Policing Improvement Agency,09/07/2010,Agency staff,ICTS,Reed Personnel Services Plc,1900056335,"1,160.47"
Home Office,NPIA - National Policing Improvement Agency,09/07/2010,Wyboston Lakes consolidated,Resources Directorate,Wyboston Lakes Ltd,1900056459,"48,873.48"
Home Office,NPIA - National Policing Improvement Agency,09/07/2010,Other consultancy,Operations Directorate,Red-M Wireless Ltd,5100042664,"-38,105.40"
Home Office,NPIA - National Policing Improvement Agency,09/07/2010,NPIA Subs to professional bodies,Operations Directorate,Fujitsu (FTS) Limited,5100043778,"52,237.88"
Home Office,NPIA - National Policing Improvement Agency,09/07/2010,NPIA Subs to professional bodies,Operations Directorate,Fujitsu (FTS) Limited,5100043778,"9,141.62"
Home Office,NPIA - National Policing Improvement Agency,14/07/2010,Misc expenditure,Operations Directorate,Greater Manchester Police Finance,1900056563,"72,000.00"
Home Office,NPIA - National Policing Improvement Agency,14/07/2010,IT consultancy,Operations Directorate,QINETIQ,5100043761,"60,000.00"
Home Office,NPIA - National Policing Improvement Agency,14/07/2010,FM Costs,Resources Directorate,Wyboston Lakes Ltd,5100043868,"129,154.20"
Home Office,NPIA - National Policing Improvement Agency,14/07/2010,Production of videos,ICTS,Mojo Productions Limited,5100044148,"22,000.00"
Home Office,NPIA - National Policing Improvement Agency,14/07/2010,IT equipment <5000,Operations Directorate,Fujitsu (FTS) Limited,5100044305,"-58,037.35"
Home Office,NPIA - National Policing Improvement Agency,15/07/2010,Other consultancy,Operations Directorate,Red-M Wireless Ltd,5100043844,"38,105.40"
Home Office,NPIA - National Policing Improvement Agency,15/07/2010,IT equipment <5000,Operations Directorate,Fujitsu (FTS) Limited,5100044363,"-2,600,333.18"
Home Office,NPIA - National Policing Improvement Agency,16/07/2010,Agency staff,People & Development Directorate,Reed Personnel Services Plc,1900056489,"3,974.40"
Home Office,NPIA - National Policing Improvement Agency,16/07/2010,Agency staff,People & Development Directorate,Reed Personnel Services Plc,1900056489,"2,223.79"
Home Office,NPIA - National Policing Improvement Agency,16/07/2010,Agency staff,CEO Directorate,Reed Personnel Services Plc,1900056489,"1,190.26"
Home Office,NPIA - National Policing Improvement Agency,16/07/2010,Agency staff,CEO Directorate,Reed Personnel Services Plc,1900056489,"5,237.10"
Home Office,NPIA - National Policing Improvement Agency,16/07/2010,Agency staff,Resources Directorate,Reed Personnel Services Plc,1900056489,643.04
Home Office,NPIA - National Policing Improvement Agency,16/07/2010,Agency staff,Resources Directorate,Reed Personnel Services Plc,1900056489,"1,454.08"
Home Office,NPIA - National Policing Improvement Agency,16/07/2010,Agency staff,Resources Directorate,Reed Personnel Services Plc,1900056489,"1,077.98"
Home Office,NPIA - National Policing Improvement Agency,16/07/2010,Agency staff,Resources Directorate,Reed Personnel Services Plc,1900056489,664.15
Home Office,NPIA - National Policing Improvement Agency,16/07/2010,Agency staff,Resources Directorate,Reed Personnel Services Plc,1900056489,"1,112.18"
Home Office,NPIA - National Policing Improvement Agency,16/07/2010,Agency staff,Resources Directorate,Reed Personnel Services Plc,1900056489,410.19
Home Office,NPIA - National Policing Improvement Agency,16/07/2010,Agency staff,Resources Directorate,Reed Personnel Services Plc,1900056489,"2,003.76"
Home Office,NPIA - National Policing Improvement Agency,16/07/2010,Agency staff,Resources Directorate,Reed Personnel Services Plc,1900056489,216.36
Home Office,NPIA - National Policing Improvement Agency,16/07/2010,Agency staff,CEO Directorate,Reed Personnel Services Plc,1900056489,"1,744.50"
Home Office,NPIA - National Policing Improvement Agency,16/07/2010,Agency staff,ICTS,Reed Personnel Services Plc,1900056489,"1,799.66"
Home Office,NPIA - National Policing Improvement Agency,16/07/2010,Agency staff,Resources Directorate,Reed Personnel Services Plc,1900056489,914.09
Home Office,NPIA - National Policing Improvement Agency,16/07/2010,Agency staff,Resources Directorate,Reed Personnel Services Plc,1900056489,559.63
Home Office,NPIA - National Policing Improvement Agency,16/07/2010,Agency staff,ICTS,Reed Personnel Services Plc,1900056489,"2,852.69"
Home Office,NPIA - National Policing Improvement Agency,16/07/2010,Agency staff,CEO Directorate,Reed Employment plc,1900056490,623.52
Home Office,NPIA - National Policing Improvement Agency,16/07/2010,Agency staff,CEO Directorate,Reed Employment plc,1900056490,738.76
Home Office,NPIA - National Policing Improvement Agency,16/07/2010,Agency staff,CEO Directorate,Reed Employment plc,1900056490,395.13
Home Office,NPIA - National Policing Improvement Agency,16/07/2010,Agency staff,Policing Policy and Practice Directorate ,Reed Employment plc,1900056490,"1,799.53"
Home Office,NPIA - National Policing Improvement Agency,16/07/2010,Agency staff,ICTS,Reed Employment plc,1900056490,"2,652.00"
Home Office,NPIA - National Policing Improvement Agency,16/07/2010,Agency staff,Policing Policy and Practice Directorate ,Reed Employment plc,1900056490,737.37
Home Office,NPIA - National Policing Improvement Agency,16/07/2010,Agency staff,CEO Directorate,Reed Employment plc,1900056490,578.12
Home Office,NPIA - National Policing Improvement Agency,16/07/2010,Agency staff,People & Development Directorate,Reed Employment plc,1900056490,752.16
Home Office,NPIA - National Policing Improvement Agency,16/07/2010,Agency staff,Policing Policy and Practice Directorate ,Reed Employment plc,1900056490,544.72
Home Office,NPIA - National Policing Improvement Agency,16/07/2010,Agency staff,People & Development Directorate,Reed Employment plc,1900056490,"2,328.74"
Home Office,NPIA - National Policing Improvement Agency,16/07/2010,Agency staff,People & Development Directorate,Reed Employment plc,1900056490,756.87
Home Office,NPIA - National Policing Improvement Agency,16/07/2010,Agency staff,People & Development Directorate,Reed Employment plc,1900056490,816.3
Home Office,NPIA - National Policing Improvement Agency,16/07/2010,Agency staff,People & Development Directorate,Reed Employment plc,1900056490,435
Home Office,NPIA - National Policing Improvement Agency,16/07/2010,Agency staff,People & Development Directorate,Reed Employment plc,1900056490,709.74
Home Office,NPIA - National Policing Improvement Agency,16/07/2010,Agency staff,People & Development Directorate,Reed Employment plc,1900056490,416.59
Home Office,NPIA - National Policing Improvement Agency,16/07/2010,Agency staff,People & Development Directorate,Reed Employment plc,1900056490,523.25
Home Office,NPIA - National Policing Improvement Agency,16/07/2010,Agency staff,People & Development Directorate,Reed Employment plc,1900056490,420.28
Home Office,NPIA - National Policing Improvement Agency,16/07/2010,Agency staff,People & Development Directorate,Reed Employment plc,1900056490,633.88
Home Office,NPIA - National Policing Improvement Agency,16/07/2010,Agency staff,Resources Directorate,Reed Employment plc,1900056490,496.46
Home Office,NPIA - National Policing Improvement Agency,16/07/2010,Agency staff,CEO Directorate,Reed Employment plc,1900056490,"1,429.67"
Home Office,NPIA - National Policing Improvement Agency,16/07/2010,Agency staff,Resources Directorate,Reed Employment plc,1900056490,599.08
Home Office,NPIA - National Policing Improvement Agency,16/07/2010,Agency staff,CEO Directorate,Reed Employment plc,1900056490,784.72
Home Office,NPIA - National Policing Improvement Agency,16/07/2010,Agency staff,Resources Directorate,Reed Employment plc,1900056490,"1,036.41"
Home Office,NPIA - National Policing Improvement Agency,16/07/2010,Agency staff,Resources Directorate,Reed Employment plc,1900056490,478.36
Home Office,NPIA - National Policing Improvement Agency,16/07/2010,Agency staff,Resources Directorate,Reed Employment plc,1900056490,"1,543.97"
Home Office,NPIA - National Policing Improvement Agency,16/07/2010,Agency staff,Resources Directorate,Reed Employment plc,1900056490,960.68
Home Office,NPIA - National Policing Improvement Agency,16/07/2010,Agency staff,Resources Directorate,Reed Employment plc,1900056490,748.97
Home Office,NPIA - National Policing Improvement Agency,16/07/2010,Agency staff,CEO Directorate,Reed Employment plc,1900056490,287.51
Home Office,NPIA - National Policing Improvement Agency,16/07/2010,Agency staff,Resources Directorate,Reed Employment plc,1900056490,462.7
Home Office,NPIA - National Policing Improvement Agency,16/07/2010,Agency staff,ICTS,Reed Employment plc,1900056490,439.32
Home Office,NPIA - National Policing Improvement Agency,16/07/2010,Agency staff,Resources Directorate,Reed Employment plc,1900056490,424.85
Home Office,NPIA - National Policing Improvement Agency,16/07/2010,Agency staff,ICTS,Reed Employment plc,1900056490,609.36
Home Office,NPIA - National Policing Improvement Agency,16/07/2010,Land and Buildings maintenance,Resources Directorate,Reliance Integrated Services Ltd,5100042885,"82,059.15"
Home Office,NPIA - National Policing Improvement Agency,16/07/2010,Land and Buildings maintenance,Resources Directorate,Reliance Integrated Services Ltd,5100042885,"1,436.03"
Home Office,NPIA - National Policing Improvement Agency,16/07/2010,IT software,People & Development Directorate,Specialist Computer Centres PLC,5100043497,"19,132.20"
Home Office,NPIA - National Policing Improvement Agency,16/07/2010,IT software,People & Development Directorate,Specialist Computer Centres PLC,5100043497,"23,770.80"
Home Office,NPIA - National Policing Improvement Agency,19/07/2010,Other consultancy,Operations Directorate,Red-M Wireless Ltd,5100044364,"38,105.40"
Home Office,NPIA - National Policing Improvement Agency,21/07/2010,Land and Buildings maintenance,Resources Directorate,Atkins Ltd,1900056698,"49,717.14"
Home Office,NPIA - National Policing Improvement Agency,21/07/2010,Land and Buildings maintenance,Resources Directorate,Atkins Ltd,1900056699,"29,181.75"
Home Office,NPIA - National Policing Improvement Agency,21/07/2010,IT Managed Services,ICTS,Forensic Science Service,5100039605,"-92,914.00"
Home Office,NPIA - National Policing Improvement Agency,21/07/2010,Rent/lease - Offices,Resources Directorate,Executive Communication Centres,5100042098,"24,057.01"
Home Office,NPIA - National Policing Improvement Agency,21/07/2010,Rent/lease - Offices,Resources Directorate,Executive Communication Centres,5100042098,421
Home Office,NPIA - National Policing Improvement Agency,21/07/2010,FM Costs,Resources Directorate,Executive Communication Centres,5100042098,"8,137.59"
Home Office,NPIA - National Policing Improvement Agency,21/07/2010,FM Costs,Resources Directorate,Executive Communication Centres,5100042098,142.41
Home Office,NPIA - National Policing Improvement Agency,21/07/2010,Audit fees - internal,Resources Directorate,The Home Office,5100042902,"51,027.58"
Home Office,NPIA - National Policing Improvement Agency,21/07/2010,Land and Buildings maintenance,Resources Directorate,Reliance Integrated Services Ltd,5100044449,"26,246.91"
Home Office,NPIA - National Policing Improvement Agency,21/07/2010,Land and Buildings maintenance,Resources Directorate,Reliance Integrated Services Ltd,5100044449,459.32
Home Office,NPIA - National Policing Improvement Agency,21/07/2010,IT maintenance,Operations Directorate,The Home Office,5100044497,"97,475.00"
Home Office,NPIA - National Policing Improvement Agency,21/07/2010,IT maintenance,Operations Directorate,The Home Office,5100044497,18.36
Home Office,NPIA - National Policing Improvement Agency,23/07/2010,Telephone charges,ICTS,BT Global Services,1900056060,"43,667.33"
Home Office,NPIA - National Policing Improvement Agency,23/07/2010,Telephone charges,ICTS,BT Plc,1900056115,"32,597.37"
Home Office,NPIA - National Policing Improvement Agency,23/07/2010,Telephone charges,ICTS,BT Plc,1900056570,"44,310.08"
Home Office,NPIA - National Policing Improvement Agency,23/07/2010,Telephone charges,ICTS,BT Global Services,1900056645,"49,778.32"
Home Office,NPIA - National Policing Improvement Agency,23/07/2010,Rent of telephone exchange,ICTS,BT Global Services,1900056645,"54,214.89"
Home Office,NPIA - National Policing Improvement Agency,23/07/2010,Agency staff,Resources Directorate,Reed Personnel Services Plc,1900056716,"1,665.40"
Home Office,NPIA - National Policing Improvement Agency,23/07/2010,Agency staff,Resources Directorate,Reed Personnel Services Plc,1900056716,259.01
Home Office,NPIA - National Policing Improvement Agency,23/07/2010,Agency staff,Resources Directorate,Reed Personnel Services Plc,1900056716,825.24
Home Office,NPIA - National Policing Improvement Agency,23/07/2010,Agency staff,Resources Directorate,Reed Personnel Services Plc,1900056716,"1,615.64"
Home Office,NPIA - National Policing Improvement Agency,23/07/2010,Agency staff,Resources Directorate,Reed Personnel Services Plc,1900056716,"1,070.85"
Home Office,NPIA - National Policing Improvement Agency,23/07/2010,Agency staff,Resources Directorate,Reed Personnel Services Plc,1900056716,856.84
Home Office,NPIA - National Policing Improvement Agency,23/07/2010,Agency staff,Resources Directorate,Reed Personnel Services Plc,1900056716,"2,003.76"
Home Office,NPIA - National Policing Improvement Agency,23/07/2010,Agency staff,Resources Directorate,Reed Personnel Services Plc,1900056716,"7,675.76"
Home Office,NPIA - National Policing Improvement Agency,23/07/2010,Agency staff,CEO Directorate,Reed Personnel Services Plc,1900056716,"1,047.42"
Home Office,NPIA - National Policing Improvement Agency,23/07/2010,Agency staff,ICTS,Reed Personnel Services Plc,1900056716,"1,699.68"
Home Office,NPIA - National Policing Improvement Agency,23/07/2010,Agency staff,Resources Directorate,Reed Personnel Services Plc,1900056716,892.95
Home Office,NPIA - National Policing Improvement Agency,23/07/2010,Agency staff,Resources Directorate,Reed Personnel Services Plc,1900056716,772.58
Home Office,NPIA - National Policing Improvement Agency,23/07/2010,Agency staff,ICTS,Reed Personnel Services Plc,1900056716,"2,969.15"
Home Office,NPIA - National Policing Improvement Agency,23/07/2010,Agency staff,CEO Directorate,Reed Employment plc,1900056717,476.85
Home Office,NPIA - National Policing Improvement Agency,23/07/2010,Agency staff,CEO Directorate,Reed Employment plc,1900056717,934.33
Home Office,NPIA - National Policing Improvement Agency,23/07/2010,Agency staff,Policing Policy and Practice Directorate ,Reed Employment plc,1900056717,"1,799.53"
Home Office,NPIA - National Policing Improvement Agency,23/07/2010,Agency staff,ICTS,Reed Employment plc,1900056717,"5,304.00"
Home Office,NPIA - National Policing Improvement Agency,23/07/2010,Agency staff,Policing Policy and Practice Directorate ,Reed Employment plc,1900056717,532.01
Home Office,NPIA - National Policing Improvement Agency,23/07/2010,Agency staff,CEO Directorate,Reed Employment plc,1900056717,564.15
Home Office,NPIA - National Policing Improvement Agency,23/07/2010,Agency staff,People & Development Directorate,Reed Employment plc,1900056717,327.87
Home Office,NPIA - National Policing Improvement Agency,23/07/2010,Agency staff,Policing Policy and Practice Directorate ,Reed Employment plc,1900056717,533.43
Home Office,NPIA - National Policing Improvement Agency,23/07/2010,Agency staff,People & Development Directorate,Reed Employment plc,1900056717,"2,328.76"
Home Office,NPIA - National Policing Improvement Agency,23/07/2010,Agency staff,People & Development Directorate,Reed Employment plc,1900056717,782.83
Home Office,NPIA - National Policing Improvement Agency,23/07/2010,Agency staff,People & Development Directorate,Reed Employment plc,1900056717,788.01
Home Office,NPIA - National Policing Improvement Agency,23/07/2010,Agency staff,People & Development Directorate,Reed Employment plc,1900056717,435
Home Office,NPIA - National Policing Improvement Agency,23/07/2010,Agency staff,People & Development Directorate,Reed Employment plc,1900056717,766.32
Home Office,NPIA - National Policing Improvement Agency,23/07/2010,Agency staff,People & Development Directorate,Reed Employment plc,1900056717,435
Home Office,NPIA - National Policing Improvement Agency,23/07/2010,Agency staff,People & Development Directorate,Reed Employment plc,1900056717,320.98
Home Office,NPIA - National Policing Improvement Agency,23/07/2010,Agency staff,People & Development Directorate,Reed Employment plc,1900056717,530.6
Home Office,NPIA - National Policing Improvement Agency,23/07/2010,Agency staff,People & Development Directorate,Reed Employment plc,1900056717,790.43
Home Office,NPIA - National Policing Improvement Agency,23/07/2010,Agency staff,Resources Directorate,Reed Employment plc,1900056717,482.97
Home Office,NPIA - National Policing Improvement Agency,23/07/2010,Agency staff,Resources Directorate,Reed Employment plc,1900056717,"1,036.41"
Home Office,NPIA - National Policing Improvement Agency,23/07/2010,Agency staff,Resources Directorate,Reed Employment plc,1900056717,426.31
Home Office,NPIA - National Policing Improvement Agency,23/07/2010,Agency staff,Resources Directorate,Reed Employment plc,1900056717,"1,372.42"
Home Office,NPIA - National Policing Improvement Agency,23/07/2010,Agency staff,Resources Directorate,Reed Employment plc,1900056717,720.51
Home Office,NPIA - National Policing Improvement Agency,23/07/2010,Agency staff,Resources Directorate,Reed Employment plc,1900056717,765.2
Home Office,NPIA - National Policing Improvement Agency,23/07/2010,Agency staff,CEO Directorate,Reed Employment plc,1900056717,374.26
Home Office,NPIA - National Policing Improvement Agency,23/07/2010,Agency staff,Resources Directorate,Reed Employment plc,1900056717,462.7
Home Office,NPIA - National Policing Improvement Agency,23/07/2010,Agency staff,ICTS,Reed Employment plc,1900056717,468.24
Home Office,NPIA - National Policing Improvement Agency,23/07/2010,Agency staff,Resources Directorate,Reed Employment plc,1900056717,421.23
Home Office,NPIA - National Policing Improvement Agency,23/07/2010,Agency staff,ICTS,Reed Employment plc,1900056717,685.58
Home Office,NPIA - National Policing Improvement Agency,23/07/2010,IT equipment <5000,Policing Policy and Practice Directorate ,Specialist Computer Centres PLC,5100041193,"41,248.08"
Home Office,NPIA - National Policing Improvement Agency,23/07/2010,IT Information Support,Policing Policy and Practice Directorate ,Specialist Computer Centres PLC,5100041193,"4,640.40"
Home Office,NPIA - National Policing Improvement Agency,23/07/2010,FM Costs,Resources Directorate,Wyboston Lakes Ltd,5100043867,"56,525.63"
Home Office,NPIA - National Policing Improvement Agency,23/07/2010,FM Costs,Resources Directorate,Wyboston Lakes Ltd,5100043867,989.2
Home Office,NPIA - National Policing Improvement Agency,23/07/2010,IT Information Support,Operations Directorate,SunGard Public Sector Ltd,5100044641,"22,823.00"
Home Office,NPIA - National Policing Improvement Agency,28/07/2010,Electricity,Resources Directorate,EDF Energy Exeter,1900056019,"40,406.03"
Home Office,NPIA - National Policing Improvement Agency,28/07/2010,Electricity,Resources Directorate,EDF Energy Exeter,1900056019,"3,634.41"
Home Office,NPIA - National Policing Improvement Agency,28/07/2010,Electricity,Resources Directorate,EDF Energy Exeter,1900056019,"16,987.69"
Home Office,NPIA - National Policing Improvement Agency,28/07/2010,Electricity,Resources Directorate,EDF Energy Exeter,1900056019,420.79
Home Office,NPIA - National Policing Improvement Agency,28/07/2010,Electricity,Resources Directorate,EDF Energy Exeter,1900056019,"4,124.91"
Home Office,NPIA - National Policing Improvement Agency,28/07/2010,Electricity,Resources Directorate,EDF Energy Exeter,1900056019,"15,904.86"
Home Office,NPIA - National Policing Improvement Agency,28/07/2010,Photocopier charges,CEO Directorate,Xerox (UK) Ltd,1900056797,"33,395.52"
Home Office,NPIA - National Policing Improvement Agency,28/07/2010,Agency staff,Resources Directorate,Reed Personnel Services Plc,1900056806,649.64
Home Office,NPIA - National Policing Improvement Agency,28/07/2010,Agency staff,Resources Directorate,Reed Personnel Services Plc,1900056806,"1,615.64"
Home Office,NPIA - National Policing Improvement Agency,28/07/2010,Agency staff,Resources Directorate,Reed Personnel Services Plc,1900056806,"1,070.85"
Home Office,NPIA - National Policing Improvement Agency,28/07/2010,Agency staff,Resources Directorate,Reed Personnel Services Plc,1900056806,998.7
Home Office,NPIA - National Policing Improvement Agency,28/07/2010,Agency staff,ICTS,Reed Personnel Services Plc,1900056806,"2,099.60"
Home Office,NPIA - National Policing Improvement Agency,28/07/2010,Agency staff,Resources Directorate,Reed Personnel Services Plc,1900056806,"14,810.86"
Home Office,NPIA - National Policing Improvement Agency,28/07/2010,Agency staff,Resources Directorate,Reed Personnel Services Plc,1900056806,807.26
Home Office,NPIA - National Policing Improvement Agency,28/07/2010,Agency staff,ICTS,Reed Personnel Services Plc,1900056806,"3,987.98"
Home Office,NPIA - National Policing Improvement Agency,28/07/2010,Agency staff,CEO Directorate,Reed Employment plc,1900056809,754.48
Home Office,NPIA - National Policing Improvement Agency,28/07/2010,Agency staff,CEO Directorate,Reed Employment plc,1900056809,934.33
Home Office,NPIA - National Policing Improvement Agency,28/07/2010,Agency staff,ICTS,Reed Employment plc,1900056809,"3,315.00"
Home Office,NPIA - National Policing Improvement Agency,28/07/2010,Agency staff,Policing Policy and Practice Directorate ,Reed Employment plc,1900056809,727.58
Home Office,NPIA - National Policing Improvement Agency,28/07/2010,Agency staff,CEO Directorate,Reed Employment plc,1900056809,599.08
Home Office,NPIA - National Policing Improvement Agency,28/07/2010,Agency staff,People & Development Directorate,Reed Employment plc,1900056809,804.04
Home Office,NPIA - National Policing Improvement Agency,28/07/2010,Agency staff,Policing Policy and Practice Directorate ,Reed Employment plc,1900056809,416.5
Home Office,NPIA - National Policing Improvement Agency,28/07/2010,Agency staff,People & Development Directorate,Reed Employment plc,1900056809,"2,328.76"
Home Office,NPIA - National Policing Improvement Agency,28/07/2010,Agency staff,People & Development Directorate,Reed Employment plc,1900056809,793.65
Home Office,NPIA - National Policing Improvement Agency,28/07/2010,Agency staff,People & Development Directorate,Reed Employment plc,1900056809,793.65
Home Office,NPIA - National Policing Improvement Agency,28/07/2010,Agency staff,People & Development Directorate,Reed Employment plc,1900056809,435
Home Office,NPIA - National Policing Improvement Agency,28/07/2010,Agency staff,People & Development Directorate,Reed Employment plc,1900056809,690.57
Home Office,NPIA - National Policing Improvement Agency,28/07/2010,Agency staff,People & Development Directorate,Reed Employment plc,1900056809,523.25
Home Office,NPIA - National Policing Improvement Agency,28/07/2010,Agency staff,People & Development Directorate,Reed Employment plc,1900056809,420.28
Home Office,NPIA - National Policing Improvement Agency,28/07/2010,Agency staff,People & Development Directorate,Reed Employment plc,1900056809,633.87
Home Office,NPIA - National Policing Improvement Agency,28/07/2010,Agency staff,Resources Directorate,Reed Employment plc,1900056809,482.97
Home Office,NPIA - National Policing Improvement Agency,28/07/2010,Agency staff,CEO Directorate,Reed Employment plc,1900056809,"2,875.46"
Home Office,NPIA - National Policing Improvement Agency,28/07/2010,Agency staff,Resources Directorate,Reed Employment plc,1900056809,860.65
Home Office,NPIA - National Policing Improvement Agency,28/07/2010,Agency staff,Resources Directorate,Reed Employment plc,1900056809,599.08
Home Office,NPIA - National Policing Improvement Agency,28/07/2010,Agency staff,Resources Directorate,Reed Employment plc,1900056809,228.74
Home Office,NPIA - National Policing Improvement Agency,28/07/2010,Agency staff,Resources Directorate,Reed Employment plc,1900056809,989.44
Home Office,NPIA - National Policing Improvement Agency,28/07/2010,Agency staff,Resources Directorate,Reed Employment plc,1900056809,445.82
Home Office,NPIA - National Policing Improvement Agency,28/07/2010,Agency staff,Resources Directorate,Reed Employment plc,1900056809,"1,372.41"
Home Office,NPIA - National Policing Improvement Agency,28/07/2010,Agency staff,Resources Directorate,Reed Employment plc,1900056809,720.51
Home Office,NPIA - National Policing Improvement Agency,28/07/2010,Agency staff,Resources Directorate,Reed Employment plc,1900056809,603.19
Home Office,NPIA - National Policing Improvement Agency,28/07/2010,Agency staff,CEO Directorate,Reed Employment plc,1900056809,479.07
Home Office,NPIA - National Policing Improvement Agency,28/07/2010,Agency staff,ICTS,Reed Employment plc,1900056809,526.06
Home Office,NPIA - National Policing Improvement Agency,28/07/2010,Agency staff,Resources Directorate,Reed Employment plc,1900056809,536.91
Home Office,NPIA - National Policing Improvement Agency,28/07/2010,Agency staff,ICTS,Reed Employment plc,1900056809,685.58
Home Office,NPIA - National Policing Improvement Agency,28/07/2010,IT consultancy,Operations Directorate,QINETIQ,5100044304,"40,000.00"
Home Office,NPIA - National Policing Improvement Agency,28/07/2010,IT consultancy,Operations Directorate,QINETIQ,5100044306,"60,000.00"
Home Office,NPIA - National Policing Improvement Agency,28/07/2010,IT Information Support,Resources Directorate,SAP (UK) Ltd,5100044385,"41,379.30"
Home Office,NPIA - National Policing Improvement Agency,28/07/2010,Stamford Service Charge,Operations Directorate,Airwave Solutions Ltd,5100044471,"110,668.96"
Home Office,NPIA - National Policing Improvement Agency,28/07/2010,Airwave in London Underground Service Charge,Operations Directorate,Airwave Solutions Ltd,5100044471,"68,641.15"
Home Office,NPIA - National Policing Improvement Agency,28/07/2010,Airwave in London Underground Service Charge,Operations Directorate,Airwave Solutions Ltd,5100044471,"21,098.56"
Home Office,NPIA - National Policing Improvement Agency,28/07/2010,Schengen Service Charge,Operations Directorate,Airwave Solutions Ltd,5100044471,"8,255.81"
Home Office,NPIA - National Policing Improvement Agency,28/07/2010,Firewall Service Charge,Operations Directorate,Airwave Solutions Ltd,5100044471,"25,065.75"
Home Office,NPIA - National Policing Improvement Agency,28/07/2010,Airwave Cluster Hot Standby Service Charge,Operations Directorate,Airwave Solutions Ltd,5100044472,"88,333.33"
Home Office,NPIA - National Policing Improvement Agency,28/07/2010,Airwave Ground Based Network Resilience Serv. Chg,Operations Directorate,Airwave Solutions Ltd,5100044473,"580,446.32"
Home Office,NPIA - National Policing Improvement Agency,28/07/2010,Airwave Cluster Hot Standby Service Charge,Operations Directorate,Airwave Solutions Ltd,5100044474,"636,906.75"
Home Office,NPIA - National Policing Improvement Agency,28/07/2010,Airwave in London Underground Service Charge,Operations Directorate,Airwave Solutions Ltd,5100044475,"366,626.25"
Home Office,NPIA - National Policing Improvement Agency,28/07/2010,Airwave Channel Tunnel Service Charge,Operations Directorate,Airwave Solutions Ltd,5100044476,"24,335.91"
Home Office,NPIA - National Policing Improvement Agency,28/07/2010,IT Managed Services,Operations Directorate,ARQIVA,5100044701,"700,000.00"
Home Office,NPIA - National Policing Improvement Agency,28/07/2010,IT Information Support,Operations Directorate,Specialist Computer Centres PLC,5100044726,"55,503.09"
Home Office,NPIA - National Policing Improvement Agency,28/07/2010,IT maintenance,Operations Directorate,Cable & Wireless Communications,5100044730,"6,102.00"
Home Office,NPIA - National Policing Improvement Agency,28/07/2010,IT Hire of equipment,Operations Directorate,Cable & Wireless Communications,5100044730,"3,738.00"
Home Office,NPIA - National Policing Improvement Agency,28/07/2010,IT Information Support,Operations Directorate,Cable & Wireless Communications,5100044730,"87,935.00"
Home Office,NPIA - National Policing Improvement Agency,28/07/2010,IT Information Support,Operations Directorate,Cable & Wireless Communications,5100044741,"52,725.00"
Home Office,NPIA - National Policing Improvement Agency,28/07/2010,IT Information Support,Operations Directorate,Cable & Wireless Communications,5100044745,187.5
Home Office,NPIA - National Policing Improvement Agency,28/07/2010,IT Information Support,Operations Directorate,Cable & Wireless Communications,5100044745,"1,900.00"
Home Office,NPIA - National Policing Improvement Agency,28/07/2010,IT Information Support,Operations Directorate,Cable & Wireless Communications,5100044745,"6,989.00"
Home Office,NPIA - National Policing Improvement Agency,28/07/2010,IT Information Support,Operations Directorate,Cable & Wireless Communications,5100044745,"2,250.00"
Home Office,NPIA - National Policing Improvement Agency,28/07/2010,IT Information Support,Operations Directorate,Cable & Wireless Communications,5100044745,"4,000.00"
Home Office,NPIA - National Policing Improvement Agency,28/07/2010,IT Information Support,Operations Directorate,Cable & Wireless Communications,5100044745,"3,515.00"
Home Office,NPIA - National Policing Improvement Agency,28/07/2010,IT Information Support,Operations Directorate,Cable & Wireless Communications,5100044745,"3,840.00"
Home Office,NPIA - National Policing Improvement Agency,28/07/2010,IT Information Support,Operations Directorate,Cable & Wireless Communications,5100044745,"3,600.00"
Home Office,NPIA - National Policing Improvement Agency,28/07/2010,IT Information Support,Operations Directorate,Cable & Wireless Communications,5100044745,"2,000.00"
Home Office,NPIA - National Policing Improvement Agency,28/07/2010,IT Information Support,Operations Directorate,Cable & Wireless Communications,5100044745,"1,733.00"
Home Office,NPIA - National Policing Improvement Agency,28/07/2010,IT Information Support,Operations Directorate,Cable & Wireless Communications,5100044745,-0.09
Home Office,Home Office,05/07/2010,Grant,OSCT - Office of Security and Counter-Terrorism,METROPOLITAN POLICE AUTHORITY  (G),421102,"786,834.00"
Home Office,Home Office,05/07/2010,Grant,OSCT - Office of Security and Counter-Terrorism,METROPOLITAN POLICE AUTHORITY  (G),421130,"787,091.00"
Home Office,Home Office,05/07/2010,Grant,OSCT - Office of Security and Counter-Terrorism,METROPOLITAN POLICE AUTHORITY  (G),421102-1,"55,754.00"
Home Office,Home Office,07/07/2010,Grant,OSCT - Office of Security and Counter-Terrorism,METROPOLITAN POLICE AUTHORITY  (G),432066,"950,854.00"
Home Office,Home Office,07/07/2010,Grant,OSCT - Office of Security and Counter-Terrorism,METROPOLITAN POLICE AUTHORITY  (G),432064,"1,800,000.00"
Home Office,Home Office,07/07/2010,Grant,OSCT - Office of Security and Counter-Terrorism,METROPOLITAN POLICE AUTHORITY  (G),432066-1,"349,218.00"
Home Office,Home Office,07/07/2010,Professional & Admin Services.Consultant - Imp & Del - PROG,OSCT - Office of Security and Counter-Terrorism,KPMG,1757620,"197,936.39"
Home Office,Home Office,07/07/2010,Professional & Admin Services.Consultant - Imp & Del - PROG,OSCT - Office of Security and Counter-Terrorism,KPMG,1757584,"70,342.55"
Home Office,Home Office,07/07/2010,Professional & Admin Services.Seconded in Staff costs - PROG,OSCT - Office of Security and Counter-Terrorism,METROPOLITAN POLICE AUTHORITY,1757644,"38,881.05"
Home Office,Home Office,08/07/2010,Professional & Admin Services.Seconded in Staff costs - PROG,OSCT - Office of Security and Counter-Terrorism,METROPOLITAN POLICE AUTHORITY,1757757,"127,951.67"
Home Office,Home Office,09/07/2010,Professional & Admin Services.Seconded in Staff costs - PROG,OSCT - Office of Security and Counter-Terrorism,METROPOLITAN POLICE AUTHORITY,1758797,"94,605.98"
Home Office,Home Office,12/07/2010,Healthcare Services.Healthcare Services - PROG,OSCT - Office of Security and Counter-Terrorism,CT CENTRE (MOD) T/A DSTL,1755616,"45,602.56"
Home Office,Home Office,20/07/2010,Storage & Mail Services.Messenger & Reception Services,OSCT - Office of Security and Counter-Terrorism,CT CENTRE (MOD) T/A DSTL,1756020,"38,307.94"
Home Office,Home Office,22/07/2010,Grant,OSCT - Office of Security and Counter-Terrorism,CABINET OFFICE (G),446796,"116,855.00"
Home Office,Home Office,22/07/2010,Storage & Mail Services.Messenger & Reception Services,OSCT - Office of Security and Counter-Terrorism,CT CENTRE (MOD) T/A DSTL,1768821,"38,444.75"
Home Office,Home Office,27/07/2010,Grant,OSCT - Office of Security and Counter-Terrorism,"ACPO OF ENGLAND, WALES AND NORTHER",449986,"417,702.79"
Home Office,Home Office,28/07/2010,Grant,OSCT - Office of Security and Counter-Terrorism,METROPOLITAN POLICE SERVICE (G),450834,"138,260.01"
Home Office,Home Office,29/07/2010,Grant,OSCT - Office of Security and Counter-Terrorism,METROPOLITAN POLICE AUTHORITY  (G),446786,"3,636,567.00"
Home Office,Home Office,29/07/2010,Grant,OSCT - Office of Security and Counter-Terrorism,MINISTRY OF DEFENCE (G),442500,"2,232,500.00"
Home Office,Home Office,30/07/2010,IT & Telecommunications.IT & Telecommunications,OSCT - Office of Security and Counter-Terrorism,FUJITSU SERVICES (ALCEDO) LTD,1755840,"70,835.67"
Home Office,Home Office,30/07/2010,"IT, Broadcasting & Telecomms.Sirius-Business Projects- PROG",OSCT - Office of Security and Counter-Terrorism,FUJITSU SERVICES (ALCEDO) LTD,1755865,"39,862.69"
Home Office,Home Office,30/07/2010,Professional & Admin Services.Consultant - Imp & Del - PROG,OSCT - Office of Security and Counter-Terrorism,KPMG,1774683,"172,493.53"
Home Office,Home Office,30/07/2010,Professional & Admin Services.Consultant - Imp & Del - PROG,OSCT - Office of Security and Counter-Terrorism,KPMG,1774687,"95,903.50"
Home Office,SIA - Security Industry Authority,02/07/2010,VAT,Finance,HMRC,CHMR02,"50,722.02"
Home Office,SIA - Security Industry Authority,09/07/2010,Rent  ,Office services,IPCC,CIPC01,"257,505.00"
Home Office,SIA - Security Industry Authority,16/07/2010,CRB Disclosure,Licensing,CRB,CCRB01,"252,096.00"
Home Office,SIA - Security Industry Authority,16/07/2010,Publications,Marcoms,COI Trading Fund,CCOI01,"38,528.00"
Home Office,SIA - Security Industry Authority,23/07/2010,Rent & service charges,Office Services,Competition Commission,CCOM20,"46,995.01"
Home Office,SIA - Security Industry Authority,28/07/2010,Legal costs,Licensing,Kingsley Napley,CKIN02,"25,720.75"
Home Office,SOCA - Serious Organised Crime Agency,01/07/2010,Property Plant & Equipment,Investment Board,DRIVERS JONAS DELOITTE,44701,"27,931.00"
Home Office,SOCA - Serious Organised Crime Agency,02/07/2010,IT Expenses,Corporate Services,INSIGHT DIRECT UK,44730,"28,646.50"
Home Office,SOCA - Serious Organised Crime Agency,07/07/2010,Premises,Corporate Services,KIER BUILDING SERVICES,45055,"119,829.92"
Home Office,SOCA - Serious Organised Crime Agency,07/07/2010,Property Plant & Equipment,Investment Board,WATES INTERIORS LTD,45135,"758,503.63"
Home Office,SOCA - Serious Organised Crime Agency,07/07/2010,Premises,Corporate Services,GOVERNMENT ESTATES MANAGEMENT,45154,"75,000.00"
Home Office,SOCA - Serious Organised Crime Agency,08/07/2010,IT Expenses,Investment Board,COMPANY WATCH LTD,45234,"35,250.00"
Home Office,SOCA - Serious Organised Crime Agency,08/07/2010,IT Expenses,Investment Board,I2 LIMITED,45243,"61,546.01"
Home Office,SOCA - Serious Organised Crime Agency,09/07/2010,Property Plant & Equipment,Projects,HERMAN MILLER LTD,45282,"98,788.13"
Home Office,SOCA - Serious Organised Crime Agency,12/07/2010,Salaries and Allowances -Seconded Officers,Intervention,REVENUE FINANCE BANKING SERVIC,45419,"110,369.98"
Home Office,SOCA - Serious Organised Crime Agency,12/07/2010,IT Expenses,Corporate Services,FOREIGN & COMMONWEALTH OFFICE,45501,"113,375.50"
Home Office,SOCA - Serious Organised Crime Agency,13/07/2010,PFI Contract Charges,Corporate Services,SERCO,45518,"1,906,091.30"
Home Office,SOCA - Serious Organised Crime Agency,13/07/2010,PFI Contract Charges,CEOP,SERCO,45518,"31,028.80"
Home Office,SOCA - Serious Organised Crime Agency,13/07/2010,IT Expenses,Investment Board,SERCO,45518,"218,463.59"
Home Office,SOCA - Serious Organised Crime Agency,14/07/2010,IT Expenses,Intelligence,BT GROUP ENG'RING SERVICES,45591,"55,819.08"
Home Office,SOCA - Serious Organised Crime Agency,14/07/2010,IT Expenses,Intelligence,SKY BUSINESS DIVISION,45606,"40,345.18"
Home Office,SOCA - Serious Organised Crime Agency,14/07/2010,IT Expenses,Corporate Services,SERCO,45630,"151,868.28"
Home Office,SOCA - Serious Organised Crime Agency,14/07/2010,IT Expenses,Corporate Services,NPIA,45639,"27,735.47"
Home Office,SOCA - Serious Organised Crime Agency,14/07/2010,Property Plant & Equipment,Investment Board,DRIVERS JONAS DELOITTE,45644,"68,795.08"
Home Office,SOCA - Serious Organised Crime Agency,14/07/2010,Professional Services and Fees,Investment Board,FIELD FISHER WATERHOUSE LLP,45650,"137,147.55"
Home Office,SOCA - Serious Organised Crime Agency,16/07/2010,Office Equipment & Repairs,Corporate Services,CANON (UK) LTD,45921,"27,050.13"
Home Office,SOCA - Serious Organised Crime Agency,19/07/2010,Professional Services and Fees,Corporate Services,LA INT'L COMPUTER CONSULTANTS,46028,"28,016.11"
Home Office,SOCA - Serious Organised Crime Agency,19/07/2010,Office and General Expenses,Corporate Services,OFFICE DEPOT UK LTD,46043,"44,106.96"
Home Office,SOCA - Serious Organised Crime Agency,20/07/2010,Indirect Employee Costs,Corporate Services,ELIESHA TRAINING LTD,46184,"27,997.90"
Home Office,SOCA - Serious Organised Crime Agency,20/07/2010,Office and General Expenses,Central & Hosted Services,CENTRAL OFFICE OF INFORMATION,46196,"28,294.00"
Home Office,SOCA - Serious Organised Crime Agency,21/07/2010,IT Expenses,Corporate Services,CAPITA BUSINESS SERVICES LTD,46445,"454,921.27"
Home Office,SOCA - Serious Organised Crime Agency,22/07/2010,"Accommodation, Subsistence & General Expenses",Intervention,BARCLAYCARD,46526,"52,801.32"
Home Office,SOCA - Serious Organised Crime Agency,22/07/2010,"Accommodation, Subsistence & General Expenses",Enforcement,BARCLAYCARD,46526,"27,058.05"
Home Office,SOCA - Serious Organised Crime Agency,22/07/2010,"Accommodation, Subsistence & General Expenses",Intelligence,BARCLAYCARD,46526,"24,763.89"
Home Office,SOCA - Serious Organised Crime Agency,22/07/2010,"Accommodation, Subsistence & General Expenses",Corporate Services,BARCLAYCARD,46526,"6,030.35"
Home Office,SOCA - Serious Organised Crime Agency,22/07/2010,"Accommodation, Subsistence & General Expenses",Central & Hosted Services,BARCLAYCARD,46526,299.48
Home Office,SOCA - Serious Organised Crime Agency,22/07/2010,"Accommodation, Subsistence & General Expenses",CEOP,BARCLAYCARD,46526,"7,798.83"
Home Office,SOCA - Serious Organised Crime Agency,22/07/2010,"Accommodation, Subsistence & General Expenses",Investment Board,BARCLAYCARD,46526,11
Home Office,SOCA - Serious Organised Crime Agency,22/07/2010,"Accommodation, Subsistence & General Expenses",Projects,BARCLAYCARD,46526,"10,459.46"
Home Office,SOCA - Serious Organised Crime Agency,22/07/2010,Property Plant & Equipment,Projects,WATES INTERIORS LTD,46548,"25,508.08"
Home Office,SOCA - Serious Organised Crime Agency,26/07/2010,IT Expenses,Intelligence,BT GROUP ENG'RING SERVICES,46657,"59,423.51"
Home Office,SOCA - Serious Organised Crime Agency,26/07/2010,IT Expenses,Intelligence,BT GROUP ENG'RING SERVICES,46659,"233,579.72"
Home Office,SOCA - Serious Organised Crime Agency,26/07/2010,IT Expenses,Intelligence,BT GROUP ENG'RING SERVICES,46660,"249,612.30"
Home Office,SOCA - Serious Organised Crime Agency,26/07/2010,Property Plant & Equipment,Projects,LOGICA UK LTD,46794,"37,576.50"
Home Office,SOCA - Serious Organised Crime Agency,26/07/2010,Office Equipment & Repairs,Corporate Services,BNP PARIBAS/HFGL,46855,"26,223.03"
Home Office,SOCA - Serious Organised Crime Agency,27/07/2010,PFI Contract Charges,Investment Board,SERCO,46916,"118,665.60"
Home Office,SOCA - Serious Organised Crime Agency,27/07/2010,Professional Services and Fees,Projects,BDO STOY HAYWARD,47008,"51,626.84"
Home Office,SOCA - Serious Organised Crime Agency,28/07/2010,Premises,Corporate Services,HOME OFFICE PAY & SUPER'N SERV,47045,"366,560.00"
Home Office,SOCA - Serious Organised Crime Agency,28/07/2010,Premises,Corporate Services,DEFENCE BILLS AGENCY,47068,"38,182.91"
Home Office,SOCA - Serious Organised Crime Agency,28/07/2010,Professional Services and Fees,Central & Hosted Services,HOME OFFICE PAY & SUPER'N SERV,47082,"369,002.48"
Home Office,SOCA - Serious Organised Crime Agency,28/07/2010,Operational and Communications Costs,Corporate Services,BT RETAIL GLOBAL BILLING,47093,"124,367.72"
Home Office,SOCA - Serious Organised Crime Agency,28/07/2010,Operational and Communications Costs,Corporate Services,BT RETAIL GLOBAL BILLING,47107,"41,164.25"
Home Office,SOCA - Serious Organised Crime Agency,28/07/2010,Operational and Communications Costs,Corporate Services,BT RETAIL GLOBAL BILLING,47114,"28,591.63"
Home Office,SOCA - Serious Organised Crime Agency,28/07/2010,IT Expenses,Corporate Services,BT RETAIL GLOBAL BILLING,47119,193.09
Home Office,SOCA - Serious Organised Crime Agency,28/07/2010,Operational and Communications Costs,Corporate Services,BT RETAIL GLOBAL BILLING,47119,"32,025.05"
Home Office,SOCA - Serious Organised Crime Agency,28/07/2010,IT Expenses,Corporate Services,BT RETAIL GLOBAL BILLING,47124,"43,225.23"
Home Office,SOCA - Serious Organised Crime Agency,28/07/2010,Professional Services and Fees,Investment Board,ELAN COMPUTING LTD,47171,"26,013.05"
Home Office,SOCA - Serious Organised Crime Agency,29/07/2010,IT Expenses,Corporate Services,SOFTCAT LTD,47279,"34,330.40"
Home Office,UKBA - UK Borders Agency,01/07/2010,Grant,UKBA - UK Borders Agency,GREATER LONDON AUTHORITY (G),416628-1,"36,100.00"
Home Office,UKBA - UK Borders Agency,01/07/2010,Grant,UKBA - UK Borders Agency,GREATER LONDON AUTHORITY (G),416628,"85,000.00"
Home Office,UKBA - UK Borders Agency,01/07/2010,"Transport, Storage & Mail Serv",UKBA - UK Borders Agency,GOVERNMENT CAR AND DESPATCH AGENCY (GCDA),330898,"29,967.21"
Home Office,UKBA - UK Borders Agency,01/07/2010,Professional & Admin Services,UKBA - UK Borders Agency,DEPARTMENT FOR INTERNATIONAL DEVELOPMENT 001,8004041,"68,882.88"
Home Office,UKBA - UK Borders Agency,02/07/2010,Asylum Provision.Asylum Cont Out Serv,UKBA - UK Borders Agency,NORTH OF ENGLAND REFUGEE SERVICES LTD,1741328,"33,148.06"
Home Office,UKBA - UK Borders Agency,02/07/2010,Defense & Law Enforcement.Police Liaison Officers,UKBA - UK Borders Agency,THE METROPOLITAN POLICE,1752799,"107,213.85"
Home Office,UKBA - UK Borders Agency,02/07/2010,Defense & Law Enforcement.Police Liaison Officers,UKBA - UK Borders Agency,GREATER MANCHESTER POLICE,1753416,"27,155.00"
Home Office,UKBA - UK Borders Agency,02/07/2010,IT & Telecoms Components.Computer Equip (FA),UKBA - UK Borders Agency,IBM DIRECT UNITED KINGDOM LTD,1745787,"38,125.94"
Home Office,UKBA - UK Borders Agency,02/07/2010,Management & Admin Serv.Corp & Bus Org Structure- PROG,UKBA - UK Borders Agency,SERCO  LTD,1734924,"70,102.85"
Home Office,UKBA - UK Borders Agency,02/07/2010,Politics & Civic Affairs.Human aid & relief Sect 4,UKBA - UK Borders Agency,UNITED PROPERTY MANAGEMENT,1754385,"711,129.00"
Home Office,UKBA - UK Borders Agency,02/07/2010,Politics & Civic Affairs.Human aid & relief Sect 4,UKBA - UK Borders Agency,UNITED PROPERTY MANAGEMENT,1754383,"641,889.70"
Home Office,UKBA - UK Borders Agency,02/07/2010,Politics & Civic Affairs.Human aid & relief Sect 4,UKBA - UK Borders Agency,NEWCASTLE CITY COUNCIL,1744034,"611,624.74"
Home Office,UKBA - UK Borders Agency,02/07/2010,Politics & Civic Affairs.Human aid & relief Sect 4,UKBA - UK Borders Agency,JOMAST PROPERTY AND FINANCE CO LTD,1753545,"418,317.36"
Home Office,UKBA - UK Borders Agency,02/07/2010,Politics & Civic Affairs.Human aid & relief Sect 4,UKBA - UK Borders Agency,UNITED PROPERTY MANAGEMENT,1754386,"324,365.02"
Home Office,UKBA - UK Borders Agency,02/07/2010,Politics & Civic Affairs.Human aid & relief Sect 4,UKBA - UK Borders Agency,PRIORITY PROPERTIES NORTH WEST,1753375,"79,584.14"
Home Office,UKBA - UK Borders Agency,02/07/2010,Politics & Civic Affairs.Human aid & relief Sect 4,UKBA - UK Borders Agency,PRIORITY PROPERTIES NORTH WEST,1753382,"71,370.24"
Home Office,UKBA - UK Borders Agency,02/07/2010,Politics & Civic Affairs.REFUGEE PROG. SECT 95,UKBA - UK Borders Agency,CITY AND COUNTY OF SWANSEA,1741620,"63,202.36"
Home Office,UKBA - UK Borders Agency,02/07/2010,Professional & Admin Services.Business admin services - PROG,UKBA - UK Borders Agency,ADVANTAGE TECHNICAL RESOURCING,1752072,"31,392.24"
Home Office,UKBA - UK Borders Agency,02/07/2010,Professional & Admin Services.Residential Rental - PROG,UKBA - UK Borders Agency,ARORA MANAGEMENT SERVICES ON BEHALF OF AP24 LTD,1752272,"318,615.94"
Home Office,UKBA - UK Borders Agency,02/07/2010,"Public Order, Security, Safety.Domestic Escort Services",UKBA - UK Borders Agency,G4S CARE & JUSTICE SERVICES (UK) LTD,1753299,"1,450,727.15"
Home Office,UKBA - UK Borders Agency,02/07/2010,"Public Order, Security, Safety.Escorting services",UKBA - UK Borders Agency,G4S CARE & JUSTICE SERVICES (UK) LTD,1705333,"212,164.34"
Home Office,UKBA - UK Borders Agency,02/07/2010,"Science, Technical & Research.Computer services - PROG",UKBA - UK Borders Agency,SPECIALIST COMPUTER CENTRES PLC,1754304,"25,027.52"
Home Office,UKBA - UK Borders Agency,02/07/2010,"Science, Technical & Research.Computer services - PROG",UKBA - UK Borders Agency,IDENTITY & PASSPORTS SERVICE,1749140,"3,176,035.58"
Home Office,UKBA - UK Borders Agency,02/07/2010,Storage & Mail Services.Messenger & Reception Services,UKBA - UK Borders Agency,REFUGEE COUNCIL,1753504,"109,020.00"
Home Office,UKBA - UK Borders Agency,02/07/2010,Storage & Mail Services.Messenger & Reception Services,UKBA - UK Borders Agency,REFUGEE COUNCIL,1753501,"81,644.94"
Home Office,UKBA - UK Borders Agency,02/07/2010,Storage & Mail Services.Messenger & Reception Services,UKBA - UK Borders Agency,REFUGEE COUNCIL,1753499,"45,960.75"
Home Office,UKBA - UK Borders Agency,02/07/2010,Storage & Mail Services.Messenger & Reception Services,UKBA - UK Borders Agency,REFUGEE COUNCIL,1753508,"39,836.23"
Home Office,UKBA - UK Borders Agency,02/07/2010,Storage & Mail Services.Messenger & Reception Services,UKBA - UK Borders Agency,REFUGEE COUNCIL,1753506,"29,789.37"
Home Office,UKBA - UK Borders Agency,02/07/2010,Storage & Mail Services.Messenger & Reception Services,UKBA - UK Borders Agency,MM TELEPERFORMANCE LTD T/A TELEPERFORMANCE,1747302,"43,196.48"
Home Office,UKBA - UK Borders Agency,02/07/2010,"Transport, Storage & Mail Serv.Mailing, Mail Delivery Service",UKBA - UK Borders Agency,FRANCOTYP-POSTALIA LIMITED,1746966,"40,000.00"
Home Office,UKBA - UK Borders Agency,02/07/2010,"Vehicles, Ships, Airplanes.4 Wheel Drive Vehicle (FA)",UKBA - UK Borders Agency,ALLIED ELECTRIC VEHICLES,1684844,"84,247.50"
Home Office,UKBA - UK Borders Agency,02/07/2010,Asylum Services.Public Expense Removals,UKBA - UK Borders Agency,CARLSON WAGONLIT TRAVEL,1753251,"260,500.00"
Home Office,UKBA - UK Borders Agency,02/07/2010,Asylum Services.Public Expense Removals,UKBA - UK Borders Agency,CARLSON WAGONLIT TRAVEL,1753284,"184,950.00"
Home Office,UKBA - UK Borders Agency,02/07/2010,Asylum Services.Public Expense Removals,UKBA - UK Borders Agency,CARLSON WAGONLIT TRAVEL,1752111,"119,523.86"
Home Office,UKBA - UK Borders Agency,02/07/2010,Asylum Services.Public Expense Removals,UKBA - UK Borders Agency,CARLSON WAGONLIT TRAVEL,1753254,"85,965.00"
Home Office,UKBA - UK Borders Agency,02/07/2010,Politics & Civic Affairs.Human aid & relief Sect 4,UKBA - UK Borders Agency,CARDIFF COUNTY COUNCIL,XBASY122/1,"379,423.38"
Home Office,UKBA - UK Borders Agency,05/07/2010,"Building, Construction Service.Build a new structure (FA)",UKBA - UK Borders Agency,INTERSERVE PROJECT SERVICES LIMITED,1754759,"791,780.80"
Home Office,UKBA - UK Borders Agency,05/07/2010,Defense & Law Enforcement.Police Liaison Officers,UKBA - UK Borders Agency,NOTTINGHAMSHIRE POLICE AUTHORITY 1,1754718,"61,816.92"
Home Office,UKBA - UK Borders Agency,05/07/2010,IT & Telecoms Components.Computer Equip (FA),UKBA - UK Borders Agency,IBM DIRECT UNITED KINGDOM LTD,1749100,"571,104.05"
Home Office,UKBA - UK Borders Agency,05/07/2010,Politics & Civic Affairs.Human aid & relief Sect 4,UKBA - UK Borders Agency,CLEARSPRINGS MANAGEMENT LTD,1754722,"812,334.46"
Home Office,UKBA - UK Borders Agency,05/07/2010,Politics & Civic Affairs.Human aid & relief Sect 4,UKBA - UK Borders Agency,PRIORITY PROPERTIES NORTH WEST,1754708,"651,850.54"
Home Office,UKBA - UK Borders Agency,05/07/2010,Politics & Civic Affairs.Human aid & relief Sect 4,UKBA - UK Borders Agency,CLEARSPRINGS MANAGEMENT LTD,1754710,"537,532.89"
Home Office,UKBA - UK Borders Agency,05/07/2010,Politics & Civic Affairs.Human aid & relief Sect 4,UKBA - UK Borders Agency,ANGEL GROUP,1754608,"427,460.26"
Home Office,UKBA - UK Borders Agency,05/07/2010,Politics & Civic Affairs.Human aid & relief Sect 4,UKBA - UK Borders Agency,CLEARSPRINGS MANAGEMENT LTD,1754719,"413,034.18"
Home Office,UKBA - UK Borders Agency,05/07/2010,Politics & Civic Affairs.Human aid & relief Sect 4,UKBA - UK Borders Agency,PRIORITY PROPERTIES NORTH WEST,1754696,"395,434.42"
Home Office,UKBA - UK Borders Agency,05/07/2010,Politics & Civic Affairs.Human aid & relief Sect 4,UKBA - UK Borders Agency,PRIORITY PROPERTIES NORTH WEST,1754700,"294,887.85"
Home Office,UKBA - UK Borders Agency,05/07/2010,Politics & Civic Affairs.Human aid & relief Sect 4,UKBA - UK Borders Agency,PRIORITY PROPERTIES NORTH WEST,1754703,"197,761.39"
Home Office,UKBA - UK Borders Agency,05/07/2010,Politics & Civic Affairs.Human aid & relief Sect 4,UKBA - UK Borders Agency,ANGEL GROUP,1754610,"196,700.94"
Home Office,UKBA - UK Borders Agency,05/07/2010,Politics & Civic Affairs.Human aid & relief Sect 4,UKBA - UK Borders Agency,CLEARSPRINGS MANAGEMENT LTD,1754726,"175,488.17"
Home Office,UKBA - UK Borders Agency,05/07/2010,Politics & Civic Affairs.Human aid & relief Sect 4,UKBA - UK Borders Agency,CLEARSPRINGS MANAGEMENT LTD,1754715,"171,740.52"
Home Office,UKBA - UK Borders Agency,05/07/2010,Politics & Civic Affairs.Human aid & relief Sect 4,UKBA - UK Borders Agency,ANGEL GROUP,1754613,"139,300.15"
Home Office,UKBA - UK Borders Agency,05/07/2010,Professional & Admin Services.Corp Business IT Serv - PROG,UKBA - UK Borders Agency,SERCO  LTD,1735640,"323,712.50"
Home Office,UKBA - UK Borders Agency,05/07/2010,Public Order.Jail or prison services,UKBA - UK Borders Agency,METROPOLITAN POLICE,1754883,"53,738.00"
Home Office,UKBA - UK Borders Agency,05/07/2010,Storage & Mail Services.Messenger & Reception Services,UKBA - UK Borders Agency,SIEMENS BUSINESS SERVICES LTD,1736528,"75,312.37"
Home Office,UKBA - UK Borders Agency,05/07/2010,Asylum Services.Public Expense Removals,UKBA - UK Borders Agency,CARLSON WAGONLIT TRAVEL,1754536,"54,364.81"
Home Office,UKBA - UK Borders Agency,05/07/2010,OGD RFT,UKBA - UK Borders Agency,TREASURY SOLICITOR CLIENT MONIES,AH651,"430,332.42"
Home Office,UKBA - UK Borders Agency,06/07/2010,Grant,UKBA - UK Borders Agency,NEWPORT COUNTY BOROUGH COUNCIL 1 (,430158,"30,372.00"
Home Office,UKBA - UK Borders Agency,06/07/2010,Professional & Admin Services.Corp Business IT Serv - PROG,UKBA - UK Borders Agency,SERCO  LTD,1738644,"288,889.26"
Home Office,UKBA - UK Borders Agency,06/07/2010,Asylum Services.Public Expense Removals,UKBA - UK Borders Agency,CARLSON WAGONLIT TRAVEL,1756090,"143,204.10"
Home Office,UKBA - UK Borders Agency,06/07/2010,Asylum Services.Public Expense Removals,UKBA - UK Borders Agency,CARLSON WAGONLIT TRAVEL,1756097,"94,965.04"
Home Office,UKBA - UK Borders Agency,06/07/2010,Asylum Services.Public Expense Removals,UKBA - UK Borders Agency,CARLSON WAGONLIT TRAVEL,1756094,"46,428.88"
Home Office,UKBA - UK Borders Agency,06/07/2010,Professional & Admin Services.Business admin services,UKBA - UK Borders Agency,DRIVER AND VEHICLE LICENSING AGENCY (DVLA),9300080892,"63,362.07"
Home Office,UKBA - UK Borders Agency,06/07/2010,Professional & Admin Services.Business admin services,UKBA - UK Borders Agency,DRIVER AND VEHICLE LICENSING AGENCY (DVLA),9300080893,"46,823.00"
Home Office,UKBA - UK Borders Agency,06/07/2010,Professional & Admin Services.Business admin services,UKBA - UK Borders Agency,DRIVER AND VEHICLE LICENSING AGENCY (DVLA),9300080890,"71,893.22"
Home Office,UKBA - UK Borders Agency,06/07/2010,Professional & Admin Services.Business admin services,UKBA - UK Borders Agency,DRIVER AND VEHICLE LICENSING AGENCY (DVLA),9300080894,"1,467,781.60"
Home Office,UKBA - UK Borders Agency,07/07/2010,Asylum Provision.Asylum serv Sect4Vouchers,UKBA - UK Borders Agency,SODEXHO PASS LTD,1749054,"327,328.27"
Home Office,UKBA - UK Borders Agency,07/07/2010,"Building, Construction Service.Build a new structure (FA)",UKBA - UK Borders Agency,G4S CARE & JUSTICE SERVICES (UK) LTD,1698491,"54,487.98"
Home Office,UKBA - UK Borders Agency,07/07/2010,Education & Training Services.Training Dev External - PROG,UKBA - UK Borders Agency,CASSIN SCOTT ASSOCIATES LTD,1734754,"30,683.13"
Home Office,UKBA - UK Borders Agency,07/07/2010,Politics & Civic Affairs.Displaced pers.assistance,UKBA - UK Borders Agency,SODEXHO PASS LTD,1748981,"1,088,639.46"
Home Office,UKBA - UK Borders Agency,07/07/2010,Politics & Civic Affairs.Human aid & relief Sect 4,UKBA - UK Borders Agency,MANCHESTER CITY COUNCIL,1756889,"652,763.02"
Home Office,UKBA - UK Borders Agency,07/07/2010,Professional & Admin Services.Residential Rental - PROG,UKBA - UK Borders Agency,MANCHESTER AIRPORT PLC,1751601,"30,109.38"
Home Office,UKBA - UK Borders Agency,07/07/2010,"Public Order, Security, Safety.PORT AUTHORITY DETENTION",UKBA - UK Borders Agency,HARWICH INTL PORT LTD,1753513,"41,141.97"
Home Office,UKBA - UK Borders Agency,07/07/2010,"Science, Technical & Research.Computer services - PROG",UKBA - UK Borders Agency,SPECIALIST COMPUTER CENTRES PLC,1756755,"27,025.01"
Home Office,UKBA - UK Borders Agency,07/07/2010,NON PO Pay Group,UKBA - UK Borders Agency,CHAPEL COURT SOLICITORS,REJO/CHUWUJAMA/2009-OPSPICEDESK,"34,419.71"
Home Office,UKBA - UK Borders Agency,08/07/2010,Grant,UKBA - UK Borders Agency,SOLIHULL MBC,430720,"1,231,207.00"
Home Office,UKBA - UK Borders Agency,08/07/2010,Management & Admin Serv.Temp IT N/w Specialists - PROG,UKBA - UK Borders Agency,ADVANTAGE TECHNICAL RESOURCING,1757876,"26,933.94"
Home Office,UKBA - UK Borders Agency,08/07/2010,Politics & Civic Affairs.Human aid & relief Sect 4,UKBA - UK Borders Agency,YMCA GLASGOW,1757832,"502,953.54"
Home Office,UKBA - UK Borders Agency,08/07/2010,Storage & Mail Services.Messenger & Reception Services,UKBA - UK Borders Agency,NPIA (National Policing Improvement Agency),1700975,"65,623.48"
Home Office,UKBA - UK Borders Agency,08/07/2010,"Transport, Storage & Mail Serv.Parking fees - PROG",UKBA - UK Borders Agency,PRINCES DOCK DEVELOPMENT COMPANY NO 4 LTD,1758514,"29,072.44"
Home Office,UKBA - UK Borders Agency,08/07/2010,Asylum Services.Public Expense Removals,UKBA - UK Borders Agency,CARLSON WAGONLIT TRAVEL,1757797,"81,150.33"
Home Office,UKBA - UK Borders Agency,08/07/2010,Asylum Services.Public Expense Removals,UKBA - UK Borders Agency,CARLSON WAGONLIT TRAVEL,1757791,"81,150.33"
Home Office,UKBA - UK Borders Agency,08/07/2010,Asylum Services.Public Expense Removals,UKBA - UK Borders Agency,CARLSON WAGONLIT TRAVEL,1758507,"46,044.14"
Home Office,UKBA - UK Borders Agency,08/07/2010,OGD RFT,UKBA - UK Borders Agency,TREASURY SOLICITOR CLIENT MONIES,AH655,"235,642.55"
Home Office,UKBA - UK Borders Agency,08/07/2010,OGD RFT,UKBA - UK Borders Agency,TREASURY SOLICITORS OFFICE,101506,"61,394.26"
Home Office,UKBA - UK Borders Agency,08/07/2010,OGD RFT,UKBA - UK Borders Agency,TREASURY SOLICITORS OFFICE,101505,"2,115,460.23"
Home Office,UKBA - UK Borders Agency,09/07/2010,Defense & Law Enforcement.Police Liaison Officers,UKBA - UK Borders Agency,WEST MIDLANDS POLICE,1758857,"28,659.34"
Home Office,UKBA - UK Borders Agency,09/07/2010,Grant,UKBA - UK Borders Agency,BOLTON MBC 1 (G),RTN100265888000009240-1,"-57,332.00"
Home Office,UKBA - UK Borders Agency,09/07/2010,Grant,UKBA - UK Borders Agency,BOLTON MBC 1 (G),RTN100265888000009240,"-89,348.47"
Home Office,UKBA - UK Borders Agency,09/07/2010,Grant,UKBA - UK Borders Agency,BOLTON MBC 1 (G),INV100265888000009032-1,"57,332.00"
Home Office,UKBA - UK Borders Agency,09/07/2010,Politics & Civic Affairs.Human aid & relief Sect 4,UKBA - UK Borders Agency,LEEDS CITY COUNCIL,1758945,"1,097,778.96"
Home Office,UKBA - UK Borders Agency,09/07/2010,Politics & Civic Affairs.Human aid & relief Sect 4,UKBA - UK Borders Agency,LIVERPOOL CITY COUNCIL,1758585,"290,201.01"
Home Office,UKBA - UK Borders Agency,09/07/2010,"Public Order, Security Service.Detention Services Contracts",UKBA - UK Borders Agency,G4S CARE & JUSTICE SERVICES (UK) LTD,1757549,"1,247,395.85"
Home Office,UKBA - UK Borders Agency,09/07/2010,"Public Order, Security Service.Detention Services Contracts",UKBA - UK Borders Agency,G4S CARE & JUSTICE SERVICES (UK) LTD,1757676,"27,357.42"
Home Office,UKBA - UK Borders Agency,09/07/2010,"Public Order, Security, Safety.Escorting services",UKBA - UK Borders Agency,G4S CARE & JUSTICE SERVICES (UK) LTD,1757540,"748,861.96"
Home Office,UKBA - UK Borders Agency,09/07/2010,"Public Order, Security, Safety.Escorting services",UKBA - UK Borders Agency,G4S CARE & JUSTICE SERVICES (UK) LTD,1757539,"288,818.91"
Home Office,UKBA - UK Borders Agency,09/07/2010,"Public Order, Security, Safety.Escorting services",UKBA - UK Borders Agency,G4S CARE & JUSTICE SERVICES (UK) LTD,1741589,"614,243.14"
Home Office,UKBA - UK Borders Agency,09/07/2010,"Public Order, Security, Safety.Escorting services",UKBA - UK Borders Agency,G4S CARE & JUSTICE SERVICES (UK) LTD,1748781,"245,558.39"
Home Office,UKBA - UK Borders Agency,09/07/2010,"Transport, Storage & Mail Serv.Mailing, Mail Delivery Service",UKBA - UK Borders Agency,FRANCOTYP-POSTALIA LIMITED,1758494,"40,000.00"
Home Office,UKBA - UK Borders Agency,12/07/2010,"Building, Construction Service.Build a new structure (FA)",UKBA - UK Borders Agency,INTERSERVE PROJECT SERVICES LIMITED,1760578,"780,845.08"
Home Office,UKBA - UK Borders Agency,12/07/2010,Grant,UKBA - UK Borders Agency,BOLTON MBC 1 (G),INV100265888000009032,"89,348.47"
Home Office,UKBA - UK Borders Agency,12/07/2010,Grant,UKBA - UK Borders Agency,HORTON HOUSING ASSOCIATION (G),HHA263,"85,657.80"
Home Office,UKBA - UK Borders Agency,12/07/2010,Politics & Civic Affairs.Human aid & relief Sect 4,UKBA - UK Borders Agency,LEEDS CITY COUNCIL,1759908,"1,138,256.17"
Home Office,UKBA - UK Borders Agency,12/07/2010,Politics & Civic Affairs.Human aid & relief Sect 4,UKBA - UK Borders Agency,HAPPY HOMES UK LTD,1759779,"610,180.47"
Home Office,UKBA - UK Borders Agency,12/07/2010,Politics & Civic Affairs.Human aid & relief Sect 4,UKBA - UK Borders Agency,METROPOLITAN SUPPORT TRUST (EAST MIDLANDS),1759870,"449,013.04"
Home Office,UKBA - UK Borders Agency,12/07/2010,"Public Order, Security, Safety.Domestic Escort Services",UKBA - UK Borders Agency,G4S CARE & JUSTICE SERVICES (UK) LTD,1752150,"1,489,756.40"
Home Office,UKBA - UK Borders Agency,12/07/2010,"Public Order, Security, Safety.Domestic Escort Services",UKBA - UK Borders Agency,G4S CARE & JUSTICE SERVICES (UK) LTD,1752155,"1,435,118.81"
Home Office,UKBA - UK Borders Agency,13/07/2010,Grant,UKBA - UK Borders Agency,SCOTTISH REFUGEE COUNCIL (G),436908,"33,664.00"
Home Office,UKBA - UK Borders Agency,13/07/2010,Grant,UKBA - UK Borders Agency,REFUGEE COUNCIL 1 (G),436912,"302,637.75"
Home Office,UKBA - UK Borders Agency,13/07/2010,Grant,UKBA - UK Borders Agency,ENFIELD COUNCIL (G),430722,"30,167.00"
Home Office,UKBA - UK Borders Agency,13/07/2010,Grant,UKBA - UK Borders Agency,SLOUGH BOROUGH COUNCIL (G),430724,"75,493.50"
Home Office,UKBA - UK Borders Agency,13/07/2010,Politics & Civic Affairs.Human aid & relief Sect 4,UKBA - UK Borders Agency,NORTHERN IRELAND HOUSING EXEC,1761186,"160,916.80"
Home Office,UKBA - UK Borders Agency,13/07/2010,Publishing & Media Design Serv.Print Engrave & Photocopy-PROG,UKBA - UK Borders Agency,3M SECURITY PRINTING & SYSTEMS LTD,1730872,"87,243.75"
Home Office,UKBA - UK Borders Agency,13/07/2010,OGD RFT,UKBA - UK Borders Agency,TREASURY SOLICITOR CLIENT MONIES,AH656,"139,202.07"
Home Office,UKBA - UK Borders Agency,14/07/2010,"Building, Construction Service.Build a new structure (FA)",UKBA - UK Borders Agency,MINISTRY OF JUSTICE,1742346,"37,384.83"
Home Office,UKBA - UK Borders Agency,14/07/2010,IT & Telecoms Components.Computer Equip (FA),UKBA - UK Borders Agency,SPECIALIST COMPUTER CENTRES PLC,1762792,"83,060.75"
Home Office,UKBA - UK Borders Agency,14/07/2010,Politics & Civic Affairs.Human aid & relief Sect 4,UKBA - UK Borders Agency,NEWCASTLE CITY COUNCIL,1762191,"620,752.98"
Home Office,UKBA - UK Borders Agency,14/07/2010,Politics & Civic Affairs.REFUGEE PROG. SECT 95,UKBA - UK Borders Agency,BIRMINGHAM CITY COUNCIL,1761988,"504,742.38"
Home Office,UKBA - UK Borders Agency,14/07/2010,Professional & Admin Services.Corp Business IT Serv - PROG,UKBA - UK Borders Agency,PARITY RESOURCES LTD,1743877,"31,183.09"
Home Office,UKBA - UK Borders Agency,14/07/2010,"Public Order, Security Service.Detention Services Contracts",UKBA - UK Borders Agency,THE GEO GROUP UK LTD,1756683,"584,022.48"
Home Office,UKBA - UK Borders Agency,14/07/2010,"Public Order, Security Service.Detention Services Contracts",UKBA - UK Borders Agency,G4S CARE & JUSTICE SERVICES (UK) LTD,1755452,"1,004,263.20"
Home Office,UKBA - UK Borders Agency,14/07/2010,Storage & Mail Services.Messenger & Reception Services,UKBA - UK Borders Agency,LEEDS CITY COUNCIL,1762153,"31,149.36"
Home Office,UKBA - UK Borders Agency,15/07/2010,"Building, Construction Service.Build a new structure (FA)",UKBA - UK Borders Agency,THE GEO GROUP UK LTD,1756694,"35,196.22"
Home Office,UKBA - UK Borders Agency,15/07/2010,Defense & Law Enforcement.Police Liaison Officers,UKBA - UK Borders Agency,SOUTH YORKSHIRE POLICE,1763801,"29,939.13"
Home Office,UKBA - UK Borders Agency,15/07/2010,Defense & Law Enforcement.Police Liaison Officers,UKBA - UK Borders Agency,HUMBERSIDE POLICE AUTHORITY,1763715,"26,144.79"
Home Office,UKBA - UK Borders Agency,15/07/2010,Education & Training Services.Training Dev External - ADMN,UKBA - UK Borders Agency,THE WORK FOUNDATION,1762946,"27,847.50"
Home Office,UKBA - UK Borders Agency,15/07/2010,Grant,UKBA - UK Borders Agency,OISC (G),430064,"339,750.00"
Home Office,UKBA - UK Borders Agency,15/07/2010,IT & Telecoms Components.Computer Equip (FA),UKBA - UK Borders Agency,SPECIALIST COMPUTER CENTRES PLC,1762803,"56,546.88"
Home Office,UKBA - UK Borders Agency,15/07/2010,Law Enforcement & safety Equip.Maint&Rep of Plant&Mach�PROG,UKBA - UK Borders Agency,OCS GROUP UK LTD,1756939,"153,380.29"
Home Office,UKBA - UK Borders Agency,15/07/2010,Politics & Civic Affairs.Human aid & relief Sect 4,UKBA - UK Borders Agency,GLASGOW CITY COUNCIL,1762979,"802,356.40"
Home Office,UKBA - UK Borders Agency,15/07/2010,"Public Order, Security Service.Detention Services Contracts",UKBA - UK Borders Agency,G4S CARE & JUSTICE SERVICES (UK) LTD,1755471,"116,366.55"
Home Office,UKBA - UK Borders Agency,15/07/2010,"Public Order, Security Service.Detention Services Contracts",UKBA - UK Borders Agency,G4S CARE & JUSTICE SERVICES (UK) LTD,1755812,"464,849.98"
Home Office,UKBA - UK Borders Agency,15/07/2010,"Public Order, Security Service.Detention Services Contracts",UKBA - UK Borders Agency,THE GEO GROUP UK LTD,1756688,"69,019.64"
Home Office,UKBA - UK Borders Agency,15/07/2010,"Public Order, Security Service.Detention Services Contracts",UKBA - UK Borders Agency,THE GEO GROUP UK LTD,1756693,"29,618.67"
Home Office,UKBA - UK Borders Agency,15/07/2010,Storage & Mail Services.Messenger & Reception Services,UKBA - UK Borders Agency,"REFUGEE ACTION ( REGIONS - NW, SE & SW )",1756690,"51,756.60"
Home Office,UKBA - UK Borders Agency,15/07/2010,Storage & Mail Services.Messenger & Reception Services,UKBA - UK Borders Agency,IDENTITY & PASSPORTS SERVICE,1762045,"34,527.42"
Home Office,UKBA - UK Borders Agency,15/07/2010,Asylum Services.Public Expense Removals,UKBA - UK Borders Agency,CARLSON WAGONLIT TRAVEL,1763257,"197,586.74"
Home Office,UKBA - UK Borders Agency,15/07/2010,Asylum Services.Public Expense Removals,UKBA - UK Borders Agency,CARLSON WAGONLIT TRAVEL,1763260,"99,259.79"
Home Office,UKBA - UK Borders Agency,15/07/2010,Asylum Services.Public Expense Removals,UKBA - UK Borders Agency,CARLSON WAGONLIT TRAVEL,1763258,"73,742.97"
Home Office,UKBA - UK Borders Agency,15/07/2010,Asylum Services.Public Expense Removals,UKBA - UK Borders Agency,CARLSON WAGONLIT TRAVEL,1763265,"58,874.37"
Home Office,UKBA - UK Borders Agency,16/07/2010,Professional & Admin Services.Corp Business IT Serv - PROG,UKBA - UK Borders Agency,ATOS ORIGIN IT SERVICES UK LIMITED,1746849,"57,537.40"
Home Office,UKBA - UK Borders Agency,16/07/2010,"Public Order, Security Service.Detention Services Contracts",UKBA - UK Borders Agency,THE GEO GROUP UK LTD,1756702,"857,395.15"
Home Office,UKBA - UK Borders Agency,16/07/2010,Storage & Mail Services.Messenger & Reception Services,UKBA - UK Borders Agency,"REFUGEE ACTION ( REGIONS - NW, SE & SW )",1756679,"116,083.35"
Home Office,UKBA - UK Borders Agency,16/07/2010,"Transport, Storage & Mail Serv.Document Storage Serv - ADMN",UKBA - UK Borders Agency,IRON MOUNTAIN (UK) LTD,1734516,"519,624.02"
Home Office,UKBA - UK Borders Agency,19/07/2010,Asylum Provision.Asylum serv Sect4Vouchers,UKBA - UK Borders Agency,SODEXHO PASS LTD,1756003,"331,861.52"
Home Office,UKBA - UK Borders Agency,19/07/2010,Asylum Provision.Asylum serv Sect4Vouchers,UKBA - UK Borders Agency,SODEXHO PASS LTD,1756951,"55,046.31"
Home Office,UKBA - UK Borders Agency,19/07/2010,Grant,UKBA - UK Borders Agency,CROYDON COLLEGE (G),443194,"208,112.50"
Home Office,UKBA - UK Borders Agency,19/07/2010,Management & Admin Serv.Corp & Bus Org Structure- PROG,UKBA - UK Borders Agency,DETICA LTD,1758028,"31,701.50"
Home Office,UKBA - UK Borders Agency,19/07/2010,Politics & Civic Affairs.Displaced pers.assistance,UKBA - UK Borders Agency,SODEXHO PASS LTD,1756949,"1,072,906.74"
Home Office,UKBA - UK Borders Agency,19/07/2010,Politics & Civic Affairs.Displaced pers.assistance,UKBA - UK Borders Agency,SODEXHO PASS LTD,1756954,"271,782.56"
Home Office,UKBA - UK Borders Agency,19/07/2010,Professional & Admin Services.Corp Business IT Serv - PROG,UKBA - UK Borders Agency,ATOS ORIGIN IT SERVICES UK LIMITED,1748809,"68,668.18"
Home Office,UKBA - UK Borders Agency,19/07/2010,"Public Order, Security, Safety.Domestic Escort Services",UKBA - UK Borders Agency,G4S CARE & JUSTICE SERVICES (UK) LTD,1743816,"51,047.21"
Home Office,UKBA - UK Borders Agency,19/07/2010,"Public Order, Security, Safety.Domestic Escort Services",UKBA - UK Borders Agency,G4S CARE & JUSTICE SERVICES (UK) LTD,1745794,"47,927.70"
Home Office,UKBA - UK Borders Agency,19/07/2010,"Public Order, Security, Safety.Domestic Escort Services",UKBA - UK Borders Agency,G4S CARE & JUSTICE SERVICES (UK) LTD,1743820,"44,952.21"
Home Office,UKBA - UK Borders Agency,19/07/2010,"Public Order, Security, Safety.Domestic Escort Services",UKBA - UK Borders Agency,G4S CARE & JUSTICE SERVICES (UK) LTD,1745798,"41,887.23"
Home Office,UKBA - UK Borders Agency,19/07/2010,"Public Order, Security, Safety.Escorting services",UKBA - UK Borders Agency,G4S CARE & JUSTICE SERVICES (UK) LTD,1748785,"94,536.41"
Home Office,UKBA - UK Borders Agency,19/07/2010,"Public Order, Security, Safety.Escorting services",UKBA - UK Borders Agency,G4S CARE & JUSTICE SERVICES (UK) LTD,1748780,"40,540.51"
Home Office,UKBA - UK Borders Agency,19/07/2010,"Public Order, Security, Safety.Escorting services",UKBA - UK Borders Agency,G4S CARE & JUSTICE SERVICES (UK) LTD,1748783,"29,182.64"
Home Office,UKBA - UK Borders Agency,19/07/2010,"Public Order, Security, Safety.Escorting services",UKBA - UK Borders Agency,G4S CARE & JUSTICE SERVICES (UK) LTD,1748784,"28,789.72"
Home Office,UKBA - UK Borders Agency,19/07/2010,"Public Order, Security, Safety.PORT AUTHORITY DETENTION",UKBA - UK Borders Agency,DOVER HARBOUR BOARD,1764985,"165,052.31"
Home Office,UKBA - UK Borders Agency,19/07/2010,"Science, Technical & Research.Computer services - PROG",UKBA - UK Borders Agency,NPIA (National Policing Improvement Agency),1764724,"69,375.00"
Home Office,UKBA - UK Borders Agency,19/07/2010,"Science, Technical & Research.Computer services - PROG",UKBA - UK Borders Agency,ATOS ORIGIN IT SERVICES UK LIMITED,1748813,"48,244.33"
Home Office,UKBA - UK Borders Agency,19/07/2010,"Science, Technical & Research.Computer services - PROG",UKBA - UK Borders Agency,ATOS ORIGIN IT SERVICES UK LIMITED,1748817,"48,244.33"
Home Office,UKBA - UK Borders Agency,19/07/2010,"Science, Technical & Research.Computer services - PROG",UKBA - UK Borders Agency,ATOS ORIGIN IT SERVICES UK LIMITED,1748827,"48,244.33"
Home Office,UKBA - UK Borders Agency,19/07/2010,"Science, Technical & Research.Computer services - PROG",UKBA - UK Borders Agency,ATOS ORIGIN IT SERVICES UK LIMITED,1748820,"39,207.40"
Home Office,UKBA - UK Borders Agency,19/07/2010,"Science, Technical & Research.Computer services - PROG",UKBA - UK Borders Agency,ATOS ORIGIN IT SERVICES UK LIMITED,1748833,"37,085.20"
Home Office,UKBA - UK Borders Agency,19/07/2010,"Transport, Storage & Mail Serv.Fuel & Vehicle Supp Serv- PROG",UKBA - UK Borders Agency,INCHCAPE FLEET SOLUTIONS LTD,1756743,"87,381.60"
Home Office,UKBA - UK Borders Agency,19/07/2010,Asylum Services.Public Expense Removals,UKBA - UK Borders Agency,CARLSON WAGONLIT TRAVEL,1764758,"215,117.79"
Home Office,UKBA - UK Borders Agency,19/07/2010,Asylum Services.Public Expense Removals,UKBA - UK Borders Agency,CARLSON WAGONLIT TRAVEL,1764755,"29,495.63"
Home Office,UKBA - UK Borders Agency,20/07/2010,Grant,UKBA - UK Borders Agency,NOTTINGHAM TRAINING AND ENTERPRISE,443688,"43,809.00"
Home Office,UKBA - UK Borders Agency,20/07/2010,Management & Admin Serv.Corp & Bus Org Structure- PROG,UKBA - UK Borders Agency,SERCO  LTD,1747293,"251,259.18"
Home Office,UKBA - UK Borders Agency,20/07/2010,Professional & Admin Services.Clerical & Admin Staff - ADMN,UKBA - UK Borders Agency,TRIBAL CONSULTING LTD,1756057,"27,952.08"
Home Office,UKBA - UK Borders Agency,20/07/2010,"Public Order, Security, Safety.Escorting services",UKBA - UK Borders Agency,G4S CARE & JUSTICE SERVICES (UK) LTD,1766118,"543,962.75"
Home Office,UKBA - UK Borders Agency,20/07/2010,"Public Order, Security, Safety.Escorting services",UKBA - UK Borders Agency,G4S CARE & JUSTICE SERVICES (UK) LTD,1766114,"53,265.43"
Home Office,UKBA - UK Borders Agency,20/07/2010,"Science, Technical & Research.Computer services - PROG",UKBA - UK Borders Agency,ATOS ORIGIN IT SERVICES UK LIMITED,1750095,"225,221.65"
Home Office,UKBA - UK Borders Agency,20/07/2010,"Science, Technical & Research.Computer services - PROG",UKBA - UK Borders Agency,ATOS ORIGIN IT SERVICES UK LIMITED,1749992,"102,054.63"
Home Office,UKBA - UK Borders Agency,20/07/2010,OGD RFT,UKBA - UK Borders Agency,TREASURY SOLICITOR CLIENT MONIES,AH659,"153,975.57"
Home Office,UKBA - UK Borders Agency,21/07/2010,Management & Admin Serv.Temporary Legal Staff - PROG,UKBA - UK Borders Agency,MORRISON & FOERSTER (UK) LLP,1739885,"51,845.94"
Home Office,UKBA - UK Borders Agency,21/07/2010,"OGD's, Councils & Police Authorities",UKBA - UK Borders Agency,BIRMINGHAM CITY COUNCIL,1766936,"47,040.00"
Home Office,UKBA - UK Borders Agency,21/07/2010,"OGD's, Councils & Police Authorities",UKBA - UK Borders Agency,BRENT REGISTER OFFICE,1766959,"26,800.00"
Home Office,UKBA - UK Borders Agency,21/07/2010,"Public Order, Security, Safety.PORT AUTHORITY DETENTION",UKBA - UK Borders Agency,HARWICH INTL PORT LTD,1768351,"40,983.58"
Home Office,UKBA - UK Borders Agency,21/07/2010,Storage & Mail Services.Messenger & Reception Services,UKBA - UK Borders Agency,REFUGEE COUNCIL,1767210,"120,060.00"
Home Office,UKBA - UK Borders Agency,21/07/2010,Storage & Mail Services.Messenger & Reception Services,UKBA - UK Borders Agency,CSC COMPUTER SCIENCES CORPORATION,1765975,"2,337,475.09"
Home Office,UKBA - UK Borders Agency,21/07/2010,"Transport, Storage & Mail Serv.Mailing Mail Del Serv - PROG",UKBA - UK Borders Agency,SECURE MAIL SERVICES LTD (SMS),1767440,"28,588.24"
Home Office,UKBA - UK Borders Agency,21/07/2010,Asylum Services.Public Expense Removals,UKBA - UK Borders Agency,CARLSON WAGONLIT TRAVEL,1767425,"119,797.73"
Home Office,UKBA - UK Borders Agency,21/07/2010,Asylum Services.Public Expense Removals,UKBA - UK Borders Agency,CARLSON WAGONLIT TRAVEL,1767434,"68,625.33"
Home Office,UKBA - UK Borders Agency,22/07/2010,Asylum Provision.Asylum serv Sect4Vouchers,UKBA - UK Borders Agency,SODEXHO PASS LTD,1760017,"221,844.28"
Home Office,UKBA - UK Borders Agency,22/07/2010,Grant,UKBA - UK Borders Agency,NEWCASTLE CITY COUNCIL (G),4933231,"35,044.75"
Home Office,UKBA - UK Borders Agency,22/07/2010,Grant,UKBA - UK Borders Agency,YORKSHIRE & HUMBERSIDE CONSORT (G),4938881,"39,717.25"
Home Office,UKBA - UK Borders Agency,22/07/2010,Politics & Civic Affairs.Displaced pers.assistance,UKBA - UK Borders Agency,SODEXHO PASS LTD,1759834,"1,076,307.75"
Home Office,UKBA - UK Borders Agency,22/07/2010,"Public Order, Security Service.Detention Services Contracts",UKBA - UK Borders Agency,G4S CARE & JUSTICE SERVICES (UK) LTD,1768348,"25,740.52"
Home Office,UKBA - UK Borders Agency,22/07/2010,Storage & Mail Services.Messenger & Reception Services,UKBA - UK Borders Agency,"REFUGEE ACTION ( REGIONS - NW, SE & SW )",1756692,"31,720.36"
Home Office,UKBA - UK Borders Agency,22/07/2010,Storage & Mail Services.Messenger & Reception Services,UKBA - UK Borders Agency,MM TELEPERFORMANCE LTD T/A TELEPERFORMANCE,1758723,"53,041.53"
Home Office,UKBA - UK Borders Agency,22/07/2010,Asylum Services.Public Expense Removals,UKBA - UK Borders Agency,CARLSON WAGONLIT TRAVEL,1768523,"85,465.00"
Home Office,UKBA - UK Borders Agency,22/07/2010,Law Enforcement & safety Equip,UKBA - UK Borders Agency,SECURITY SERVICES GROUP,OP/I096615,"26,355.96"
Home Office,UKBA - UK Borders Agency,23/07/2010,Financial & Insurance Services.Banking & Monetary Serv - PROG,UKBA - UK Borders Agency,STREAMLINE,1769694,"27,089.54"
Home Office,UKBA - UK Borders Agency,23/07/2010,Grant,UKBA - UK Borders Agency,MANCHESTER CITY COUNCIL 2 (G),447720,"39,717.25"
Home Office,UKBA - UK Borders Agency,23/07/2010,Professional & Admin Services.Consultant - Imp & Del - PROG,UKBA - UK Borders Agency,PA CONSULTING SERVICES LTD,1769709,"42,828.75"
Home Office,UKBA - UK Borders Agency,23/07/2010,"Public Order, Security, Safety.Confinement Surveillance",UKBA - UK Borders Agency,G4S CARE & JUSTICE SERVICES (UK) LTD,1770548,"29,905.63"
Home Office,UKBA - UK Borders Agency,23/07/2010,"Science, Technical & Research.Computer services - PROG",UKBA - UK Borders Agency,ATOS ORIGIN IT SERVICES UK LIMITED,1751353,"27,936.80"
Home Office,UKBA - UK Borders Agency,23/07/2010,"Transport, Storage & Mail Serv.Fuel & Vehicle Supp Serv- PROG",UKBA - UK Borders Agency,ARVAL UK LTD,1770387,"31,602.28"
Home Office,UKBA - UK Borders Agency,23/07/2010,OGD RFT,UKBA - UK Borders Agency,TREASURY SOLICITOR CLIENT MONIES,AH661,"35,914.60"
Home Office,UKBA - UK Borders Agency,23/07/2010,OGD RFT,UKBA - UK Borders Agency,TREASURY SOLICITOR CLIENT MONIES,PT/41217A/AVE1E,"107,574.45"
Home Office,UKBA - UK Borders Agency,26/07/2010,Grant,UKBA - UK Borders Agency,NORTHERN REFUGEE CENTRE (G),447288,"25,000.00"
Home Office,UKBA - UK Borders Agency,26/07/2010,Grant,UKBA - UK Borders Agency,COUNCIL FOR REFUGEE ACADEMICS (G),447288,"33,368.67"
Home Office,UKBA - UK Borders Agency,26/07/2010,IT & Telecoms Components.Computer Equip (FA),UKBA - UK Borders Agency,SERCO  LTD,1754393,"105,694.68"
Home Office,UKBA - UK Borders Agency,26/07/2010,"Public Order, Security Service.Detention Services Contracts",UKBA - UK Borders Agency,SERCO  LTD,1755940,"897,746.31"
Home Office,UKBA - UK Borders Agency,26/07/2010,"Public Order, Security Service.Detention Services Contracts",UKBA - UK Borders Agency,SERCO  LTD,1756956,"146,515.05"
Home Office,UKBA - UK Borders Agency,26/07/2010,"Public Order, Security Service.Detention Services Contracts",UKBA - UK Borders Agency,SERCO  LTD,1757011,"2,266,845.49"
Home Office,UKBA - UK Borders Agency,26/07/2010,"Public Order, Security, Safety.Domestic Escort Services",UKBA - UK Borders Agency,G4S CARE & JUSTICE SERVICES (UK) LTD,1764870,"104,049.03"
Home Office,UKBA - UK Borders Agency,26/07/2010,"Public Order, Security, Safety.Domestic Escort Services",UKBA - UK Borders Agency,G4S CARE & JUSTICE SERVICES (UK) LTD,1729139,"54,630.88"
Home Office,UKBA - UK Borders Agency,26/07/2010,"Public Order, Security, Safety.Domestic Escort Services",UKBA - UK Borders Agency,G4S CARE & JUSTICE SERVICES (UK) LTD,1730480,"43,572.38"
Home Office,UKBA - UK Borders Agency,26/07/2010,Asylum Services.Public Expense Removals,UKBA - UK Borders Agency,CARLSON WAGONLIT TRAVEL,1770645,"249,750.00"
Home Office,UKBA - UK Borders Agency,26/07/2010,Asylum Services.Public Expense Removals,UKBA - UK Borders Agency,CARLSON WAGONLIT TRAVEL,1770643,"165,742.72"
Home Office,UKBA - UK Borders Agency,26/07/2010,Asylum Services.Public Expense Removals,UKBA - UK Borders Agency,CARLSON WAGONLIT TRAVEL,1770751,"114,760.72"
Home Office,UKBA - UK Borders Agency,26/07/2010,Asylum Services.Public Expense Removals,UKBA - UK Borders Agency,CARLSON WAGONLIT TRAVEL,1770641,"75,626.67"
Home Office,UKBA - UK Borders Agency,26/07/2010,"Public Order, Security, Safety",UKBA - UK Borders Agency,MINISTRY OF JUSTICE,304783,"115,918.60"
Home Office,UKBA - UK Borders Agency,26/07/2010,"Print, Photo, Audio & Visual",UKBA - UK Borders Agency,FCO SERVICES,6021392,"217,086.80"
Home Office,UKBA - UK Borders Agency,27/07/2010,Defense & Law Enforcement.Police Liaison Officers,UKBA - UK Borders Agency,NORTHAMPTONSHIRE POLICE 2,1771587,"41,487.69"
Home Office,UKBA - UK Borders Agency,27/07/2010,Defense & Law Enforcement.Police Liaison Officers,UKBA - UK Borders Agency,NORTH WALES POLICE,1771586,"37,937.22"
Home Office,UKBA - UK Borders Agency,27/07/2010,Grant,UKBA - UK Borders Agency,CARDIFF COUNTY COUNCIL 1 (G),444370,"535,995.04"
Home Office,UKBA - UK Borders Agency,27/07/2010,"Public Order, Security, Safety.Confinement Surveillance",UKBA - UK Borders Agency,SERCO  LTD,1755639,"96,073.42"
Home Office,UKBA - UK Borders Agency,27/07/2010,"Science, Technical & Research.Computer services - PROG",UKBA - UK Borders Agency,ATOS ORIGIN IT SERVICES UK LIMITED,1750000,"225,221.65"
Home Office,UKBA - UK Borders Agency,27/07/2010,Asylum Services.Public Expense Removals,UKBA - UK Borders Agency,CARLSON WAGONLIT TRAVEL,1772490,"123,638.28"
Home Office,UKBA - UK Borders Agency,27/07/2010,OGD RFT,UKBA - UK Borders Agency,TREASURY SOLICITOR CLIENT MONIES,AH665,"357,694.13"
Home Office,UKBA - UK Borders Agency,28/07/2010,IT & Telecoms Components.Computer Equip (FA),UKBA - UK Borders Agency,IBM DIRECT UNITED KINGDOM LTD,1763960,"1,571,709.38"
Home Office,UKBA - UK Borders Agency,28/07/2010,IT & Telecoms Components.Computer Equip (FA),UKBA - UK Borders Agency,IBM DIRECT UNITED KINGDOM LTD,1764149,"67,719.95"
Home Office,UKBA - UK Borders Agency,28/07/2010,"Public Order, Security, Safety.Domestic Escort Services",UKBA - UK Borders Agency,G4S CARE & JUSTICE SERVICES (UK) LTD,1698785,"44,144.10"
Home Office,UKBA - UK Borders Agency,28/07/2010,Public Order.Voluntary Assisted Return,UKBA - UK Borders Agency,CITIBANK INTERNATIONAL PLC,1773208,"125,000.00"
Home Office,UKBA - UK Borders Agency,28/07/2010,Storage & Mail Services.Messenger & Reception Services,UKBA - UK Borders Agency,LEEDS CITY COUNCIL,1773217,"68,036.76"
Home Office,UKBA - UK Borders Agency,28/07/2010,Storage & Mail Services.Messenger & Reception Services,UKBA - UK Borders Agency,NORTH OF ENGLAND REFUGEE SERVICES LTD,1772622,"48,215.36"
Home Office,UKBA - UK Borders Agency,28/07/2010,Politics & Civic Affairs.Human aid & relief Sect 4,UKBA - UK Borders Agency,CARDIFF COUNTY COUNCIL,XBASY123/1,"378,392.98"
Home Office,UKBA - UK Borders Agency,29/07/2010,Asylum Provision.Asylum serv Sect4Vouchers,UKBA - UK Borders Agency,SODEXHO PASS LTD,1765919,"358,336.22"
Home Office,UKBA - UK Borders Agency,29/07/2010,Defense & Law Enforcement.Police Liaison Officers,UKBA - UK Borders Agency,THE METROPOLITAN POLICE,1773562,"78,469.93"
Home Office,UKBA - UK Borders Agency,29/07/2010,Defense & Law Enforcement.Police Liaison Officers,UKBA - UK Borders Agency,WEST MIDLANDS POLICE,1773897,"28,734.56"
Home Office,UKBA - UK Borders Agency,29/07/2010,Defense & Law Enforcement.Police Liaison Officers,UKBA - UK Borders Agency,GRAMPIAN JOINT POLICE BOARD,1773486,"25,549.96"
Home Office,UKBA - UK Borders Agency,29/07/2010,Grant,UKBA - UK Borders Agency,NATIONAL MUSEUMS LIVERPOOL (G),453288,"84,174.25"
Home Office,UKBA - UK Borders Agency,29/07/2010,IT & Telecoms Components.Computer Equip (FA),UKBA - UK Borders Agency,ATOS ORIGIN IT SERVICES UK LIMITED,1750084,"530,496.05"
Home Office,UKBA - UK Borders Agency,29/07/2010,IT & Telecoms Components.Computer Equip (FA),UKBA - UK Borders Agency,ATOS ORIGIN IT SERVICES UK LIMITED,1750019,"83,018.45"
Home Office,UKBA - UK Borders Agency,29/07/2010,Politics & Civic Affairs.Displaced pers.assistance,UKBA - UK Borders Agency,SODEXHO PASS LTD,1765719,"1,081,897.84"
Home Office,UKBA - UK Borders Agency,29/07/2010,Politics & Civic Affairs.REFUGEE PROG. SECT 95,UKBA - UK Borders Agency,CITY AND COUNTY OF SWANSEA,1757702,"67,004.07"
Home Office,UKBA - UK Borders Agency,29/07/2010,Politics & Civic Affairs.Refugee repatriation.serv,UKBA - UK Borders Agency,G4S JUSTICE SERVICES LTD - AIM,1773879,"223,953.50"
Home Office,UKBA - UK Borders Agency,29/07/2010,Professional & Admin Services.Personnel Recruit Serv - PROG,UKBA - UK Borders Agency,MENDAS LTD,1771490,"86,967.63"
Home Office,UKBA - UK Borders Agency,29/07/2010,Publishing & Media Design Serv.Print Engrave & Photocopy-PROG,UKBA - UK Borders Agency,3M SECURITY PRINTING & SYSTEMS LTD,1773929,"26,653.70"
Home Office,UKBA - UK Borders Agency,29/07/2010,Asylum Services.Public Expense Removals,UKBA - UK Borders Agency,CARLSON WAGONLIT TRAVEL,1772492,"105,665.54"
Home Office,UKBA - UK Borders Agency,30/07/2010,"Building, Construction Service.Build a new structure (FA)",UKBA - UK Borders Agency,TURNER & TOWNSEND PROJECT MANAGEMENT,1744730,"29,492.50"
Home Office,UKBA - UK Borders Agency,30/07/2010,Grant,UKBA - UK Borders Agency,COSLA (G),448870,"35,000.00"
Home Office,UKBA - UK Borders Agency,30/07/2010,IT & Telecoms Components.Computer Equip (FA),UKBA - UK Borders Agency,SPECIALIST COMPUTER CENTRES PLC,1756728,"45,592.49"
Home Office,UKBA - UK Borders Agency,30/07/2010,IT & Telecoms Components.Computer Equip (FA),UKBA - UK Borders Agency,SPECIALIST COMPUTER CENTRES PLC,1756774,"44,225.20"
Home Office,UKBA - UK Borders Agency,30/07/2010,Management & Admin Serv.Corp & Bus Org Structure- PROG,UKBA - UK Borders Agency,SERCO  LTD,1757565,"70,102.85"
Home Office,UKBA - UK Borders Agency,30/07/2010,Politics & Civic Affairs.Human aid & relief Sect 4,UKBA - UK Borders Agency,UNITED PROPERTY MANAGEMENT,1775399,"660,005.43"
Home Office,UKBA - UK Borders Agency,30/07/2010,Politics & Civic Affairs.Human aid & relief Sect 4,UKBA - UK Borders Agency,PRIORITY PROPERTIES NORTH WEST,1775334,"633,202.31"
Home Office,UKBA - UK Borders Agency,30/07/2010,Politics & Civic Affairs.Human aid & relief Sect 4,UKBA - UK Borders Agency,UNITED PROPERTY MANAGEMENT,1775400,"627,581.65"
Home Office,UKBA - UK Borders Agency,30/07/2010,Politics & Civic Affairs.Human aid & relief Sect 4,UKBA - UK Borders Agency,PRIORITY PROPERTIES NORTH WEST,1775342,"370,368.66"
Home Office,UKBA - UK Borders Agency,30/07/2010,Politics & Civic Affairs.Human aid & relief Sect 4,UKBA - UK Borders Agency,UNITED PROPERTY MANAGEMENT,1775401,"293,932.11"
Home Office,UKBA - UK Borders Agency,30/07/2010,Politics & Civic Affairs.Human aid & relief Sect 4,UKBA - UK Borders Agency,PRIORITY PROPERTIES NORTH WEST,1775339,"276,537.13"
Home Office,UKBA - UK Borders Agency,30/07/2010,Politics & Civic Affairs.Human aid & relief Sect 4,UKBA - UK Borders Agency,PRIORITY PROPERTIES NORTH WEST,1775337,"191,268.53"
Home Office,UKBA - UK Borders Agency,30/07/2010,Professional & Admin Services.Business admin services - PROG,UKBA - UK Borders Agency,ERNST AND YOUNG_001,1733844,"353,265.35"
Home Office,UKBA - UK Borders Agency,30/07/2010,Professional & Admin Services.Business admin services - PROG,UKBA - UK Borders Agency,ERNST AND YOUNG_001,1756834,"320,256.03"
Home Office,UKBA - UK Borders Agency,30/07/2010,Professional & Admin Services.Corp Business IT Serv - PROG,UKBA - UK Borders Agency,ERNST AND YOUNG_001,1773455,"319,409.65"
Home Office,UKBA - UK Borders Agency,30/07/2010,Professional & Admin Services.Corp Business IT Serv - PROG,UKBA - UK Borders Agency,SERCO  LTD,1757568,"323,712.50"
Home Office,UKBA - UK Borders Agency,30/07/2010,"Transport, Storage & Mail Serv.Document Storage Serv - ADMN",UKBA - UK Borders Agency,IRON MOUNTAIN (UK) LTD,1758612,"560,022.92"
Home Office,UKBA - UK Borders Agency,30/07/2010,Asylum Services.Public Expense Removals,UKBA - UK Borders Agency,CARLSON WAGONLIT TRAVEL,1775272,"217,400.00"
Home Office,UKBA - UK Borders Agency,30/07/2010,Asylum Services.Public Expense Removals,UKBA - UK Borders Agency,CARLSON WAGONLIT TRAVEL,1775380,"214,305.55"
Home Office,UKBA - UK Borders Agency,30/07/2010,Asylum Services.Public Expense Removals,UKBA - UK Borders Agency,CARLSON WAGONLIT TRAVEL,1775383,"113,837.39"
Home Office,UKBA - UK Borders Agency,30/07/2010,Asylum Services.Public Expense Removals,UKBA - UK Borders Agency,CARLSON WAGONLIT TRAVEL,1775386,"104,872.33"
Home Office,UKBA - UK Borders Agency,30/07/2010,Asylum Services.Public Expense Removals,UKBA - UK Borders Agency,CARLSON WAGONLIT TRAVEL,1774835,"85,465.00"
Home Office,UKBA - UK Borders Agency,30/07/2010,Asylum Services.Public Expense Removals,UKBA - UK Borders Agency,CARLSON WAGONLIT TRAVEL,1775266,"57,200.00"
Home Office,UKBA - UK Borders Agency,31/07/2010,OGD RFT,UKBA - UK Borders Agency,OSAG - OFFICE OF THE ADVOCATE GENERAL,95006938,"75,052.45"
